Workbook

Sheet Mapping
B2: Welcome to "Create Your Own Multi-Dimensional Perceptual Map"
B3: Follow the Steps in Yellow
B4: Only enter data/information in the Blue cells
B5: The Grey cells provide additional information
C6: For more information on Perceptual Maps visit: | G6: www.perceptualmaps.com | K6: Or email: geoff@perceptualmaps.com
B9: STEP ONE | C9: Enter the Title of Your Map | E9: Soft Drinks
E10: (This is an example only. Simply type over this map title.)
E13: STEP THREE >>> | H13: Enter Attribute Label Across >>> (from E16 to P16) | AH13: Attribute | AI13: 1 | AJ13: =+AI13 -> 1 | AK13: =+AJ13 -> 1 | AL13: =+AK13 -> 1 | AM13: 1 | AN13: 1 | AO13: 1 | AP13: 1 | AQ13: 1 | AR13: =+AQ13 -> 1 | AS13: 1 | AT13: 2 | AU13: =+AT13 -> 2 | AV13: 2 | AW13: 2 | AX13: 2 | AY13: 2 | AZ13: 2 | BA13: =+AZ13 -> 2 | BB13: 2 | BC13: 2 | BD13: 3 | BE13: =+BD13 -> 3 | BF13: 3 | BG13: 3 | BH13: 3 | BI13: 3 | BJ13: 3 | BK13: 3 | BL13: =+BK13 -> 3 | BM13: 4 | BN13: 4 | BO13: =+BN13 -> 4 | BP13: 4 | BQ13: 4 | BR13: 4 | BS13: 4 | BT13: =+BS13 -> 4 | BU13: 5 | BV13: 5 | BW13: =+BV13 -> 5 | BX13: 5 | BY13: 5 | BZ13: 5 | CA13: 5 | CB13: 6 | CC13: =+CB13 -> 6 | CD13: 6 | CE13: 6 | CF13: 6 | CG13: 6 | CH13: 7 | CI13: =+CH13 -> 7 | CJ13: 7 | CK13: 7 | CL13: 7 | CM13: 8 | CN13: =+CM13 -> 8 | CO13: 8 | CP13: 8 | CQ13: 9 | CR13: =+CQ13 -> 9 | CS13: 9 | CT13: 10 | CU13: =+CT13 -> 10 | CV13: 11
B14: STEP TWO | C14: Enter Brands Below | E14: You may enter up to 12 attributes | H14: Some examples provided, simply type over the top to enter your own attributes | AH14: Differences | AI14: 2 | AJ14: =+AI14+1 -> 3 | AK14: =+AJ14+1 -> 4 | AL14: =+AK14+1 -> 5 | AM14: 6 | AN14: 7 | AO14: 8 | AP14: 9 | AQ14: 10 | AR14: =+AQ14+1 -> 11 | AS14: 12 | AT14: 3 | AU14: =+AT14+1 -> 4 | AV14: 5 | AW14: 6 | AX14: 7 | AY14: 8 | AZ14: 9 | BA14: =+AZ14+1 -> 10 | BB14: 11 | BC14: 12 | BD14: 4 | BE14: =+BD14+1 -> 5 | BF14: 6 | BG14: 7 | BH14: 8 | BI14: 9 | BJ14: 10 | BK14: 11 | BL14: =+BK14+1 -> 12 | BM14: 5 | BN14: 6 | BO14: =+BN14+1 -> 7 | BP14: 8 | BQ14: 9 | BR14: 10 | BS14: 11 | BT14: =+BS14+1 -> 12 | BU14: 6 | BV14: 7 | BW14: =+BV14+1 -> 8 | BX14: 9 | BY14: 10 | BZ14: 11 | CA14: 12 | CB14: 7 | CC14: =+CB14+1 -> 8 | CD14: 9 | CE14: 10 | CF14: 11 | CG14: 12 | CH14: 8 | CI14: =+CH14+1 -> 9 | CJ14: 10 | CK14: 11 | CL14: 12 | CM14: 9 | CN14: =+CM14+1 -> 10 | CO14: 11 | CP14: 12 | CQ14: 10 | CR14: =+CQ14+1 -> 11 | CS14: 12 | CT14: 11 | CU14: =+CT14+1 -> 12 | CV14: 12
C15: You may enter up to 12 brands | E15: 1 | F15: 2 | G15: 3 | H15: 4 | I15: 5 | J15: 6 | K15: 7 | L15: 8 | M15: 9 | N15: 10 | O15: 11 | P15: 12
C16: Some examples provided, simply type over the top to enter your own brands | E16: Sweet | F16: For Kids | G16: High caffeine | H16: Modern | I16: Low in sugar | J16: Trusted | K16: Clear | L16: Tangy | M16: Adult | N16: Bitter | O16: Feminine | P16: For diets
C17: 1 | D17: Coke | E17: 6 | F17: 5 | G17: 7 | H17: 5 | I17: 3 | J17: 9 | K17: 1 | L17: 5 | M17: 7 | N17: 2 | O17: 5 | P17: 2 | AH17: 2 | AI17: =IFERROR(IF(AND(HLOOKUP(AI$13,brand_data,$AH17)>0.5,HLOOKUP(AI$14,brand_data,$AH17)>0.5),SQRT(((HLOOKUP(AI$13,brand_data,$AH17)-HLOOKUP(AI$14,brand_data,$AH17)))^2),""),"") -> 1 | AJ17: 1 | AK17: 1 | AL17: 3 | AM17: 3 | AN17: 5 | AO17: 1 | AP17: 1 | AQ17: 4 | AR17: 1 | AS17: =IFERROR(IF(AND(HLOOKUP(AS$13,brand_data,$AH17)>0.5,HLOOKUP(AS$14,brand_data,$AH17)>0.5),SQRT(((HLOOKUP(AS$13,brand_data,$AH17)-HLOOKUP(AS$14,brand_data,$AH17)))^2),""),"") -> 4 | AT17: 2 | AU17: 0 | AV17: 2 | AW17: 4 | AX17: 4 | AY17: 0 | AZ17: 2 | BA17: 3 | BB17: 0 | BC17: =IFERROR(IF(AND(HLOOKUP(BC$13,brand_data,$AH17)>0.5,HLOOKUP(BC$14,brand_data,$AH17)>0.5),SQRT(((HLOOKUP(BC$13,brand_data,$AH17)-HLOOKUP(BC$14,brand_data,$AH17)))^2),""),"") -> 3 | BD17: 2 | BE17: 4 | BF17: 2 | BG17: 6 | BH17: 2 | BI17: 0 | BJ17: 5 | BK17: 2 | BL17: 5 | BM17: =IFERROR(IF(AND(HLOOKUP(BM$13,brand_data,$AH17)>0.5,HLOOKUP(BM$14,brand_data,$AH17)>0.5),SQRT(((HLOOKUP(BM$13,brand_data,$AH17)-HLOOKUP(BM$14,brand_data,$AH17)))^2),""),"") -> 2 | BN17: 4 | BO17: 4 | BP17: 0 | BQ17: 2 | BR17: 3 | BS17: 0 | BT17: 3 | BU17: 6 | BV17: 2 | BW17: =IFERROR(IF(AND(HLOOKUP(BW$13,brand_data,$AH17)>0.5,HLOOKUP(BW$14,brand_data,$AH17)>0.5),SQRT(((HLOOKUP(BW$13,brand_data,$AH17)-HLOOKUP(BW$14,brand_data,$AH17)))^2),""),"") -> 2 | BX17: 4 | BY17: 1 | BZ17: 2 | CA17: 1 | CB17: 8 | CC17: 4 | CD17: 2 | CE17: 7 | CF17: 4 | CG17: =IFERROR(IF(AND(HLOOKUP(CG$13,brand_data,$AH17)>0.5,HLOOKUP(CG$14,brand_data,$AH17)>0.5),SQRT(((HLOOKUP(CG$13,brand_data,$AH17)-HLOOKUP(CG$14,brand_data,$AH17)))^2),""),"") -> 7 | CH17: 4 | CI17: 6 | CJ17: 1 | CK17: 4 | CL17: 1 | CM17: 2 | CN17: 3 | CO17: 0 | CP17: 3 | CQ17: =IFERROR(IF(AND(HLOOKUP(CQ$13,brand_data,$AH17)>0.5,HLOOKUP(CQ$14,brand_data,$AH17)>0.5),SQRT(((HLOOKUP(CQ$13,brand_data,$AH17)-HLOOKUP(CQ$14,brand_data,$AH17)))^2),""),"") -> 5 | CR17: 2 | CS17: 5 | CT17: 3 | CU17: 0 | CV17: 3
C18: 2 | D18: Pepsi | E18: 9 | F18: 6 | G18: 7 | H18: 7 | I18: 1 | J18: 7 | K18: 1 | L18: 5 | M18: 6 | N18: 1 | O18: 6 | P18: 1 | AH18: =+AH17+1 -> 3 | AI18: 3 | AJ18: 2 | AK18: 2 | AL18: 8 | AM18: 2 | AN18: 8 | AO18: 4 | AP18: 3 | AQ18: 8 | AR18: 3 | AS18: 8 | AT18: 1 | AU18: 1 | AV18: 5 | AW18: 1 | AX18: 5 | AY18: 1 | AZ18: 0 | BA18: 5 | BB18: 0 | BC18: 5 | BD18: 0 | BE18: 6 | BF18: 0 | BG18: 6 | BH18: 2 | BI18: 1 | BJ18: 6 | BK18: 1 | BL18: 6 | BM18: 6 | BN18: 0 | BO18: 6 | BP18: 2 | BQ18: 1 | BR18: 6 | BS18: 1 | BT18: 6 | BU18: 6 | BV18: 0 | BW18: 4 | BX18: 5 | BY18: 0 | BZ18: 5 | CA18: 0 | CB18: 6 | CC18: 2 | CD18: 1 | CE18: 6 | CF18: 1 | CG18: 6 | CH18: 4 | CI18: 5 | CJ18: 0 | CK18: 5 | CL18: 0 | CM18: 1 | CN18: 4 | CO18: 1 | CP18: 4 | CQ18: 5 | CR18: 0 | CS18: 5 | CT18: 5 | CU18: 0 | CV18: 5
C19: 3 | D19: Fanta | E19: 8 | F19: 9 | G19: 2 | H19: 3 | I19: 1 | J19: 5 | K19: 4 | L19: 7 | M19: 2 | N19: 1 | O19: 6 | P19: 1 | AH19: =+AH18+1 -> 4 | AI19: 1 | AJ19: 6 | AK19: 5 | AL19: 7 | AM19: 3 | AN19: 4 | AO19: 1 | AP19: 6 | AQ19: 7 | AR19: 2 | AS19: 7 | AT19: 7 | AU19: 6 | AV19: 8 | AW19: 4 | AX19: 5 | AY19: 2 | AZ19: 7 | BA19: 8 | BB19: 3 | BC19: 8 | BD19: 1 | BE19: 1 | BF19: 3 | BG19: 2 | BH19: 5 | BI19: 0 | BJ19: 1 | BK19: 4 | BL19: 1 | BM19: 2 | BN19: 2 | BO19: 1 | BP19: 4 | BQ19: 1 | BR19: 2 | BS19: 3 | BT19: 2 | BU19: 4 | BV19: 3 | BW19: 6 | BX19: 1 | BY19: 0 | BZ19: 5 | CA19: 0 | CB19: 1 | CC19: 2 | CD19: 3 | CE19: 4 | CF19: 1 | CG19: 4 | CH19: 3 | CI19: 2 | CJ19: 3 | CK19: 2 | CL19: 3 | CM19: 5 | CN19: 6 | CO19: 1 | CP19: 6 | CQ19: 1 | CR19: 4 | CS19: 1 | CT19: 5 | CU19: 0 | CV19: 5
C20: 4 | D20: Sprite | E20: 4 | F20: 4 | G20: 1 | H20: 6 | I20: 6 | J20: 5 | K20: 7 | L20: 8 | M20: 5 | N20: 2 | O20: 6 | P20: 3 | AH20: 5 | AI20: 0 | AJ20: 3 | AK20: 2 | AL20: 2 | AM20: 1 | AN20: 3 | AO20: 4 | AP20: 1 | AQ20: 2 | AR20: 2 | AS20: 1 | AT20: 3 | AU20: 2 | AV20: 2 | AW20: 1 | AX20: 3 | AY20: 4 | AZ20: 1 | BA20: 2 | BB20: 2 | BC20: 1 | BD20: 5 | BE20: 5 | BF20: 4 | BG20: 6 | BH20: 7 | BI20: 4 | BJ20: 1 | BK20: 5 | BL20: 2 | BM20: 0 | BN20: 1 | BO20: 1 | BP20: 2 | BQ20: 1 | BR20: 4 | BS20: 0 | BT20: 3 | BU20: 1 | BV20: 1 | BW20: 2 | BX20: 1 | BY20: 4 | BZ20: 0 | CA20: 3 | CB20: 2 | CC20: 3 | CD20: 0 | CE20: 3 | CF20: 1 | CG20: 2 | CH20: 1 | CI20: 2 | CJ20: 5 | CK20: 1 | CL20: 4 | CM20: 3 | CN20: 6 | CO20: 2 | CP20: 5 | CQ20: 3 | CR20: 1 | CS20: 2 | CT20: 4 | CU20: 1 | CV20: 3
C21: 5 | D21: Pepsi Max | E21: 3 | F21: 2 | G21: 9 | H21: 6 | I21: 7 | J21: 3 | K21: 2 | L21: 5 | M21: 6 | N21: 7 | O21: 2 | P21: 7 | AH21: 6 | AI21: 1 | AJ21: 6 | AK21: 3 | AL21: 4 | AM21: 0 | AN21: 1 | AO21: 2 | AP21: 3 | AQ21: 4 | AR21: 1 | AS21: 4 | AT21: 7 | AU21: 4 | AV21: 5 | AW21: 1 | AX21: 0 | AY21: 3 | AZ21: 4 | BA21: 5 | BB21: 0 | BC21: 5 | BD21: 3 | BE21: 2 | BF21: 6 | BG21: 7 | BH21: 4 | BI21: 3 | BJ21: 2 | BK21: 7 | BL21: 2 | BM21: 1 | BN21: 3 | BO21: 4 | BP21: 1 | BQ21: 0 | BR21: 1 | BS21: 4 | BT21: 1 | BU21: 4 | BV21: 5 | BW21: 2 | BX21: 1 | BY21: 0 | BZ21: 5 | CA21: 0 | CB21: 1 | CC21: 2 | CD21: 3 | CE21: 4 | CF21: 1 | CG21: 4 | CH21: 3 | CI21: 4 | CJ21: 5 | CK21: 0 | CL21: 5 | CM21: 1 | CN21: 2 | CO21: 3 | CP21: 2 | CQ21: 1 | CR21: 4 | CS21: 1 | CT21: 5 | CU21: 0 | CV21: 5
C22: 6 | D22: Coke Zero | E22: 5 | F22: 4 | G22: 7 | H22: 8 | I22: 9 | J22: 5 | K22: 2 | L22: 4 | M22: 6 | N22: 5 | O22: 2 | P22: 7 | AH22: 7 | AI22: 1 | AJ22: 2 | AK22: 3 | AL22: 4 | AM22: 0 | AN22: 3 | AO22: 1 | AP22: 1 | AQ22: 0 | AR22: 3 | AS22: 2 | AT22: 3 | AU22: 4 | AV22: 5 | AW22: 1 | AX22: 2 | AY22: 0 | AZ22: 2 | BA22: 1 | BB22: 2 | BC22: 3 | BD22: 1 | BE22: 2 | BF22: 2 | BG22: 5 | BH22: 3 | BI22: 1 | BJ22: 2 | BK22: 5 | BL22: 0 | BM22: 1 | BN22: 3 | BO22: 6 | BP22: 4 | BQ22: 2 | BR22: 3 | BS22: 6 | BT22: 1 | BU22: 4 | BV22: 7 | BW22: 5 | BX22: 3 | BY22: 4 | BZ22: 7 | CA22: 2 | CB22: 3 | CC22: 1 | CD22: 1 | CE22: 0 | CF22: 3 | CG22: 2 | CH22: 2 | CI22: 4 | CJ22: 3 | CK22: 0 | CL22: 5 | CM22: 2 | CN22: 1 | CO22: 2 | CP22: 3 | CQ22: 1 | CR22: 4 | CS22: 1 | CT22: 3 | CU22: 2 | CV22: 5
C23: 7 | D23: Water | E23: 2 | F23: 5 | G23: 1 | H23: 2 | I23: 9 | J23: 9 | K23: 9 | L23: 3 | M23: 5 | N23: 4 | O23: 3 | P23: 9 | AH23: 8 | AI23: 3 | AJ23: 1 | AK23: 0 | AL23: 7 | AM23: 7 | AN23: 7 | AO23: 1 | AP23: 3 | AQ23: 2 | AR23: 1 | AS23: 7 | AT23: 4 | AU23: 3 | AV23: 4 | AW23: 4 | AX23: 4 | AY23: 2 | AZ23: 0 | BA23: 1 | BB23: 2 | BC23: 4 | BD23: 1 | BE23: 8 | BF23: 8 | BG23: 8 | BH23: 2 | BI23: 4 | BJ23: 3 | BK23: 2 | BL23: 8 | BM23: 7 | BN23: 7 | BO23: 7 | BP23: 1 | BQ23: 3 | BR23: 2 | BS23: 1 | BT23: 7 | BU23: 0 | BV23: 0 | BW23: 6 | BX23: 4 | BY23: 5 | BZ23: 6 | CA23: 0 | CB23: 0 | CC23: 6 | CD23: 4 | CE23: 5 | CF23: 6 | CG23: 0 | CH23: 6 | CI23: 4 | CJ23: 5 | CK23: 6 | CL23: 0 | CM23: 2 | CN23: 1 | CO23: 0 | CP23: 6 | CQ23: 1 | CR23: 2 | CS23: 4 | CT23: 1 | CU23: 5 | CV23: 6
C24: 8 | D24: Mt Dew | E24: 8 | F24: 4 | G24: 6 | H24: 3 | I24: 4 | J24: 5 | K24: 6 | L24: 9 | M24: 6 | N24: 3 | O24: 4 | P24: 3 | AH24: 9 | AI24: 4 | AJ24: 2 | AK24: 5 | AL24: 4 | AM24: 3 | AN24: 2 | AO24: 1 | AP24: 2 | AQ24: 5 | AR24: 4 | AS24: 5 | AT24: 2 | AU24: 1 | AV24: 0 | AW24: 1 | AX24: 2 | AY24: 5 | AZ24: 2 | BA24: 1 | BB24: 0 | BC24: 1 | BD24: 3 | BE24: 2 | BF24: 1 | BG24: 0 | BH24: 3 | BI24: 0 | BJ24: 3 | BK24: 2 | BL24: 3 | BM24: 1 | BN24: 2 | BO24: 3 | BP24: 6 | BQ24: 3 | BR24: 0 | BS24: 1 | BT24: 0 | BU24: 1 | BV24: 2 | BW24: 5 | BX24: 2 | BY24: 1 | BZ24: 0 | CA24: 1 | CB24: 1 | CC24: 4 | CD24: 1 | CE24: 2 | CF24: 1 | CG24: 2 | CH24: 3 | CI24: 0 | CJ24: 3 | CK24: 2 | CL24: 3 | CM24: 3 | CN24: 6 | CO24: 5 | CP24: 6 | CQ24: 3 | CR24: 2 | CS24: 3 | CT24: 1 | CU24: 0 | CV24: 1
C25: 9 | D25: Dr Pepper | E25: 2 | F25: 1 | G25: 5 | H25: 4 | I25: 3 | J25: 4 | K25: 3 | L25: 6 | M25: 8 | N25: 9 | O25: 2 | P25: 4 | AH25: 10 | AI25: 1 | AJ25: 3 | AK25: 2 | AL25: 1 | AM25: 2 | AN25: 1 | AO25: 4 | AP25: 6 | AQ25: 7 | AR25: 0 | AS25: 2 | AT25: 4 | AU25: 3 | AV25: 2 | AW25: 3 | AX25: 2 | AY25: 5 | AZ25: 7 | BA25: 8 | BB25: 1 | BC25: 3 | BD25: 1 | BE25: 2 | BF25: 1 | BG25: 2 | BH25: 1 | BI25: 3 | BJ25: 4 | BK25: 3 | BL25: 1 | BM25: 1 | BN25: 0 | BO25: 1 | BP25: 2 | BQ25: 4 | BR25: 5 | BS25: 2 | BT25: 0 | BU25: 1 | BV25: 0 | BW25: 3 | BX25: 5 | BY25: 6 | BZ25: 1 | CA25: 1 | CB25: 1 | CC25: 2 | CD25: 4 | CE25: 5 | CF25: 2 | CG25: 0 | CH25: 3 | CI25: 5 | CJ25: 6 | CK25: 1 | CL25: 1 | CM25: 2 | CN25: 3 | CO25: 4 | CP25: 2 | CQ25: 1 | CR25: 6 | CS25: 4 | CT25: 7 | CU25: 5 | CV25: 2
C26: 10 | D26: Diet Coke | E26: 3 | F26: 2 | G26: 7 | H26: 4 | I26: 2 | J26: 7 | K26: 3 | L26: 5 | M26: 8 | N26: 7 | O26: 9 | P26: 8 | AH26: 11 | AI26: 1 | AJ26: 4 | AK26: 1 | AL26: 1 | AM26: 4 | AN26: 0 | AO26: 2 | AP26: 5 | AQ26: 4 | AR26: 6 | AS26: 5 | AT26: 5 | AU26: 2 | AV26: 0 | AW26: 5 | AX26: 1 | AY26: 3 | AZ26: 6 | BA26: 5 | BB26: 7 | BC26: 6 | BD26: 3 | BE26: 5 | BF26: 0 | BG26: 4 | BH26: 2 | BI26: 1 | BJ26: 0 | BK26: 2 | BL26: 1 | BM26: 2 | BN26: 3 | BO26: 1 | BP26: 1 | BQ26: 4 | BR26: 3 | BS26: 5 | BT26: 4 | BU26: 5 | BV26: 1 | BW26: 3 | BX26: 6 | BY26: 5 | BZ26: 7 | CA26: 6 | CB26: 4 | CC26: 2 | CD26: 1 | CE26: 0 | CF26: 2 | CG26: 1 | CH26: 2 | CI26: 5 | CJ26: 4 | CK26: 6 | CL26: 5 | CM26: 3 | CN26: 2 | CO26: 4 | CP26: 3 | CQ26: 1 | CR26: 1 | CS26: 0 | CT26: 2 | CU26: 1 | CV26: 1
C27: 11 | D27: Pepsi Next | E27: 6 | F27: 6 | G27: 8 | H27: 8 | I27: 6 | J27: 5 | K27: 3 | L27: 6 | M27: 4 | N27: 5 | O27: 6 | P27: 4 | AH27: 12 | AI27: 0 | AJ27: 2 | AK27: 2 | AL27: 0 | AM27: 1 | AN27: 3 | AO27: 0 | AP27: 2 | AQ27: 1 | AR27: 0 | AS27: 2 | AT27: 2 | AU27: 2 | AV27: 0 | AW27: 1 | AX27: 3 | AY27: 0 | AZ27: 2 | BA27: 1 | BB27: 0 | BC27: 2 | BD27: 0 | BE27: 2 | BF27: 3 | BG27: 5 | BH27: 2 | BI27: 4 | BJ27: 3 | BK27: 2 | BL27: 4 | BM27: 2 | BN27: 3 | BO27: 5 | BP27: 2 | BQ27: 4 | BR27: 3 | BS27: 2 | BT27: 4 | BU27: 1 | BV27: 3 | BW27: 0 | BX27: 2 | BY27: 1 | BZ27: 0 | CA27: 2 | CB27: 2 | CC27: 1 | CD27: 1 | CE27: 0 | CF27: 1 | CG27: 1 | CH27: 3 | CI27: 1 | CJ27: 2 | CK27: 3 | CL27: 1 | CM27: 2 | CN27: 1 | CO27: 0 | CP27: 2 | CQ27: 1 | CR27: 2 | CS27: 0 | CT27: 1 | CU27: 1 | CV27: 2
C28: 12 | D28: Lift | E28: 8 | F28: 6 | G28: 2 | H28: 6 | I28: 3 | J28: 4 | K28: 6 | L28: 9 | M28: 2 | N28: 3 | O28: 5 | P28: 2 | AH28: 13 | AI28: 2 | AJ28: 6 | AK28: 2 | AL28: 5 | AM28: 4 | AN28: 2 | AO28: 1 | AP28: 6 | AQ28: 5 | AR28: 3 | AS28: 6 | AT28: 4 | AU28: 0 | AV28: 3 | AW28: 2 | AX28: 0 | AY28: 3 | AZ28: 4 | BA28: 3 | BB28: 1 | BC28: 4 | BD28: 4 | BE28: 1 | BF28: 2 | BG28: 4 | BH28: 7 | BI28: 0 | BJ28: 1 | BK28: 3 | BL28: 0 | BM28: 3 | BN28: 2 | BO28: 0 | BP28: 3 | BQ28: 4 | BR28: 3 | BS28: 1 | BT28: 4 | BU28: 1 | BV28: 3 | BW28: 6 | BX28: 1 | BY28: 0 | BZ28: 2 | CA28: 1 | CB28: 2 | CC28: 5 | CD28: 2 | CE28: 1 | CF28: 1 | CG28: 2 | CH28: 3 | CI28: 4 | CJ28: 3 | CK28: 1 | CL28: 4 | CM28: 7 | CN28: 6 | CO28: 4 | CP28: 7 | CQ28: 1 | CR28: 3 | CS28: 0 | CT28: 2 | CU28: 1 | CV28: 3
D30: STEP FOUR | E30: Enter the attribute score (using a 1-9 scale) for each brand in the above table | AI30: =IFERROR(AVERAGE(AI17:AI28),"") -> 1.5 | AJ30: =IFERROR(AVERAGE(AJ17:AJ28),"") -> 3.166666667 | AK30: 2.333333333 | AL30: 3.833333333 | AM30: 2.5 | AN30: 3.25 | AO30: 1.833333333 | AP30: 3.25 | AQ30: 4.083333333 | AR30: 2.166666667 | AS30: 4.416666667 | AT30: 3.666666667 | AU30: 2.333333333 | AV30: 3 | AW30: 2.333333333 | AX30: 2.583333333 | AY30: 2.333333333 | AZ30: 3.083333333 | BA30: 3.583333333 | BB30: 1.5 | BC30: 3.75 | BD30: 2 | BE30: 3.333333333 | BF30: 2.666666667 | BG30: 4.583333333 | BH30: 3.333333333 | BI30: 1.75 | BJ30: 2.583333333 | BK30: 3.166666667 | BL30: 2.75 | BM30: 2.333333333 | BN30: 2.5 | BO30: 3.25 | BP30: 2.333333333 | BQ30: 2.416666667 | BR30: 2.916666667 | BS30: 2.166666667 | BT30: 2.916666667 | BU30: 2.833333333 | BV30: 2.25 | BW30: 3.666666667 | BX30: 2.916666667 | BY30: 2.25 | BZ30: 3.333333333 | CA30: 1.416666667 | CB30: 2.583333333 | CC30: 2.833333333 | CD30: 1.916666667 | CE30: 3.083333333 | CF30: 2 | CG30: 2.583333333 | CH30: 3.083333333 | CI30: 3.5 | CJ30: 3.333333333 | CK30: 2.583333333 | CL30: 2.666666667 | CM30: 2.75 | CN30: 3.416666667 | CO30: 2.166666667 | CP30: 4.083333333 | CQ30: 2 | CR30: 2.583333333 | CS30: 2.166666667 | CT30: 3.25 | CU30: 1.333333333 | CV30: =IFERROR(AVERAGE(CV17:CV28),"") -> 3.416666667
E31: The higher the number = the greater association that the brand has with that attribute
E32: For example, 1 = no association with the attribute, 5 = some association and 9 = very high association | AH32: Brand | AI32: 1 | AJ32: =+AI32 -> 1 | AK32: =+AJ32 -> 1 | AL32: =+AK32 -> 1 | AM32: 1 | AN32: 1 | AO32: 1 | AP32: 1 | AQ32: 1 | AR32: 1 | AS32: 1 | AT32: 2 | AU32: =+AT32 -> 2 | AV32: 2 | AW32: 2 | AX32: 2 | AY32: 2 | AZ32: 2 | BA32: 2 | BB32: 2 | BC32: 2 | BD32: 3 | BE32: =+BD32 -> 3 | BF32: 3 | BG32: 3 | BH32: 3 | BI32: 3 | BJ32: 3 | BK32: 3 | BL32: 3 | BM32: 4 | BN32: =+BM32 -> 4 | BO32: 4 | BP32: 4 | BQ32: 4 | BR32: 4 | BS32: 4 | BT32: 4 | BU32: 5 | BV32: =+BU32 -> 5 | BW32: 5 | BX32: 5 | BY32: 5 | BZ32: 5 | CA32: 5 | CB32: 6 | CC32: =+CB32 -> 6 | CD32: 6 | CE32: 6 | CF32: 6 | CG32: 6 | CH32: 7 | CI32: =+CH32 -> 7 | CJ32: 7 | CK32: 7 | CL32: 7 | CM32: 8 | CN32: =+CM32 -> 8 | CO32: 8 | CP32: 8 | CQ32: 9 | CR32: =+CQ32 -> 9 | CS32: 9 | CT32: 10 | CU32: =+CT32 -> 10 | CV32: 11
AH33: Differences | AI33: 2 | AJ33: =+AI33+1 -> 3 | AK33: =+AJ33+1 -> 4 | AL33: =+AK33+1 -> 5 | AM33: 6 | AN33: 7 | AO33: 8 | AP33: 9 | AQ33: 10 | AR33: 11 | AS33: 12 | AT33: 3 | AU33: =+AT33+1 -> 4 | AV33: 5 | AW33: 6 | AX33: 7 | AY33: 8 | AZ33: 9 | BA33: 10 | BB33: 11 | BC33: 12 | BD33: 4 | BE33: =+BD33+1 -> 5 | BF33: 6 | BG33: 7 | BH33: 8 | BI33: 9 | BJ33: 10 | BK33: 11 | BL33: 12 | BM33: 5 | BN33: =+BM33+1 -> 6 | BO33: 7 | BP33: 8 | BQ33: 9 | BR33: 10 | BS33: 11 | BT33: 12 | BU33: 6 | BV33: =+BU33+1 -> 7 | BW33: 8 | BX33: 9 | BY33: 10 | BZ33: 11 | CA33: 12 | CB33: 7 | CC33: =+CB33+1 -> 8 | CD33: 9 | CE33: 10 | CF33: 11 | CG33: 12 | CH33: 8 | CI33: =+CH33+1 -> 9 | CJ33: 10 | CK33: 11 | CL33: 12 | CM33: 9 | CN33: =+CM33+1 -> 10 | CO33: 11 | CP33: 12 | CQ33: 10 | CR33: =+CQ33+1 -> 11 | CS33: 12 | CT33: 11 | CU33: =+CT33+1 -> 12 | CV33: 12
G34: Important Note for Apple Mac users
D35: STEP FIVE | E35: Ensure that your spreadsheet has the 'Solver add-in' loaded | Q35: ATTENTION APPLE MAC USERS!!!
D36: Follow sequence below | E36: In the top menu of Excel click "File" then select "Options" and then select "Add-Ins" | Q36: Do not follow the instructions in Step Five | AH36: 2 | AI36: =IFERROR(SQRT(((HLOOKUP(AI$13,reverse_data,$AH36)-HLOOKUP(AI$14,reverse_data,$AH36)))^2),"") -> 3 | AJ36: 2 | AK36: 2 | AL36: 3 | AM36: 1 | AN36: 4 | AO36: 2 | AP36: 4 | AQ36: 3 | AR36: 0 | AS36: =IFERROR(SQRT(((HLOOKUP(AS$13,reverse_data,$AH36)-HLOOKUP(AS$14,reverse_data,$AH36)))^2),"") -> 2 | AT36: 1 | AU36: 5 | AV36: 6 | AW36: 4 | AX36: 7 | AY36: 1 | AZ36: 7 | BA36: 6 | BB36: 3 | BC36: =IFERROR(SQRT(((HLOOKUP(BC$13,reverse_data,$AH36)-HLOOKUP(BC$14,reverse_data,$AH36)))^2),"") -> 1 | BD36: 4 | BE36: 5 | BF36: 3 | BG36: 6 | BH36: 0 | BI36: 6 | BJ36: 5 | BK36: 2 | BL36: 0 | BM36: =IFERROR(SQRT(((HLOOKUP(BM$13,reverse_data,$AH36)-HLOOKUP(BM$14,reverse_data,$AH36)))^2),"") -> 1 | BN36: 1 | BO36: 2 | BP36: 4 | BQ36: 2 | BR36: 1 | BS36: 2 | BT36: 4 | BU36: 2 | BV36: 1 | BW36: =IFERROR(SQRT(((HLOOKUP(BW$13,reverse_data,$AH36)-HLOOKUP(BW$14,reverse_data,$AH36)))^2),"") -> 5 | BX36: 1 | BY36: 0 | BZ36: 3 | CA36: 5 | CB36: 3 | CC36: 3 | CD36: 3 | CE36: 2 | CF36: 1 | CG36: =IFERROR(SQRT(((HLOOKUP(CG$13,reverse_data,$AH36)-HLOOKUP(CG$14,reverse_data,$AH36)))^2),"") -> 3 | CH36: 6 | CI36: 0 | CJ36: 1 | CK36: 4 | CL36: 6 | CM36: 6 | CN36: 5 | CO36: 2 | CP36: 0 | CQ36: =IFERROR(SQRT(((HLOOKUP(CQ$13,reverse_data,$AH36)-HLOOKUP(CQ$14,reverse_data,$AH36)))^2),"") -> 1 | CR36: 4 | CS36: 6 | CT36: 3 | CU36: 5 | CV36: 2
E37: Then click 'Go' next to 'Manage Excel Add-ins' and select the 'Solver Add-in' (as shown below) | Q37: Instead, select 'Tools', then 'Add-ins' and then 'Solver' | AH37: =+AH36+1 -> 3 | AI37: 1 | AJ37: 4 | AK37: 1 | AL37: 3 | AM37: 1 | AN37: 0 | AO37: 1 | AP37: 4 | AQ37: 3 | AR37: 1 | AS37: 1 | AT37: 3 | AU37: 2 | AV37: 4 | AW37: 2 | AX37: 1 | AY37: 2 | AZ37: 5 | BA37: 4 | BB37: 0 | BC37: 0 | BD37: 5 | BE37: 7 | BF37: 5 | BG37: 4 | BH37: 5 | BI37: 8 | BJ37: 7 | BK37: 3 | BL37: 3 | BM37: 2 | BN37: 0 | BO37: 1 | BP37: 0 | BQ37: 3 | BR37: 2 | BS37: 2 | BT37: 2 | BU37: 2 | BV37: 3 | BW37: 2 | BX37: 1 | BY37: 0 | BZ37: 4 | CA37: 4 | CB37: 1 | CC37: 0 | CD37: 3 | CE37: 2 | CF37: 2 | CG37: 2 | CH37: 1 | CI37: 4 | CJ37: 3 | CK37: 1 | CL37: 1 | CM37: 3 | CN37: 2 | CO37: 2 | CP37: 2 | CQ37: 1 | CR37: 5 | CS37: 5 | CT37: 4 | CU37: 4 | CV37: 0
B38: STEP SIX | E38: Please note that these options are standard with every version of Excel, including the student version | Q38: You will also need to follow Step Six below | AH38: =+AH37+1 -> 4 | AI38: 0 | AJ38: 5 | AK38: 6 | AL38: 2 | AM38: 0 | AN38: 6 | AO38: 1 | AP38: 2 | AQ38: 0 | AR38: 1 | AS38: 5 | AT38: 5 | AU38: 6 | AV38: 2 | AW38: 0 | AX38: 6 | AY38: 1 | AZ38: 2 | BA38: 0 | BB38: 1 | BC38: 5 | BD38: 1 | BE38: 7 | BF38: 5 | BG38: 1 | BH38: 4 | BI38: 3 | BJ38: 5 | BK38: 6 | BL38: 0 | BM38: 8 | BN38: 6 | BO38: 0 | BP38: 5 | BQ38: 4 | BR38: 6 | BS38: 7 | BT38: 1 | BU38: 2 | BV38: 8 | BW38: 3 | BX38: 4 | BY38: 2 | BZ38: 1 | CA38: 7 | CB38: 6 | CC38: 1 | CD38: 2 | CE38: 0 | CF38: 1 | CG38: 5 | CH38: 5 | CI38: 4 | CJ38: 6 | CK38: 7 | CL38: 1 | CM38: 1 | CN38: 1 | CO38: 2 | CP38: 4 | CQ38: 2 | CR38: 3 | CS38: 3 | CT38: 1 | CU38: 5 | CV38: 6
AH39: 5 | AI39: 2 | AJ39: 2 | AK39: 1 | AL39: 1 | AM39: 3 | AN39: 3 | AO39: 2 | AP39: 1 | AQ39: 1 | AR39: 3 | AS39: 1 | AT39: 4 | AU39: 1 | AV39: 1 | AW39: 1 | AX39: 5 | AY39: 4 | AZ39: 3 | BA39: 3 | BB39: 1 | BC39: 1 | BD39: 3 | BE39: 3 | BF39: 5 | BG39: 1 | BH39: 0 | BI39: 1 | BJ39: 1 | BK39: 5 | BL39: 3 | BM39: 0 | BN39: 2 | BO39: 4 | BP39: 3 | BQ39: 2 | BR39: 2 | BS39: 2 | BT39: 0 | BU39: 2 | BV39: 4 | BW39: 3 | BX39: 2 | BY39: 2 | BZ39: 2 | CA39: 0 | CB39: 6 | CC39: 5 | CD39: 4 | CE39: 4 | CF39: 0 | CG39: 2 | CH39: 1 | CI39: 2 | CJ39: 2 | CK39: 6 | CL39: 4 | CM39: 1 | CN39: 1 | CO39: 5 | CP39: 3 | CQ39: 0 | CR39: 4 | CS39: 2 | CT39: 4 | CU39: 2 | CV39: 2
AH40: 6 | AI40: 2 | AJ40: 2 | AK40: 3 | AL40: 4 | AM40: 6 | AN40: 6 | AO40: 1 | AP40: 0 | AQ40: 1 | AR40: 3 | AS40: 0 | AT40: 0 | AU40: 5 | AV40: 6 | AW40: 8 | AX40: 8 | AY40: 3 | AZ40: 2 | BA40: 1 | BB40: 5 | BC40: 2 | BD40: 5 | BE40: 6 | BF40: 8 | BG40: 8 | BH40: 3 | BI40: 2 | BJ40: 1 | BK40: 5 | BL40: 2 | BM40: 1 | BN40: 3 | BO40: 3 | BP40: 2 | BQ40: 3 | BR40: 4 | BS40: 0 | BT40: 3 | BU40: 2 | BV40: 2 | BW40: 3 | BX40: 4 | BY40: 5 | BZ40: 1 | CA40: 4 | CB40: 0 | CC40: 5 | CD40: 6 | CE40: 7 | CF40: 3 | CG40: 6 | CH40: 5 | CI40: 6 | CJ40: 7 | CK40: 3 | CL40: 6 | CM40: 1 | CN40: 2 | CO40: 2 | CP40: 1 | CQ40: 1 | CR40: 3 | CS40: 0 | CT40: 4 | CU40: 1 | CV40: 3
AH41: 7 | AI41: 2 | AJ41: 4 | AK41: 4 | AL41: 6 | AM41: 4 | AN41: 0 | AO41: 4 | AP41: 5 | AQ41: 2 | AR41: 4 | AS41: 5 | AT41: 2 | AU41: 2 | AV41: 4 | AW41: 2 | AX41: 2 | AY41: 2 | AZ41: 3 | BA41: 0 | BB41: 2 | BC41: 3 | BD41: 0 | BE41: 2 | BF41: 0 | BG41: 4 | BH41: 0 | BI41: 1 | BJ41: 2 | BK41: 0 | BL41: 1 | BM41: 2 | BN41: 0 | BO41: 4 | BP41: 0 | BQ41: 1 | BR41: 2 | BS41: 0 | BT41: 1 | BU41: 2 | BV41: 6 | BW41: 2 | BX41: 1 | BY41: 4 | BZ41: 2 | CA41: 1 | CB41: 4 | CC41: 0 | CD41: 1 | CE41: 2 | CF41: 0 | CG41: 1 | CH41: 4 | CI41: 5 | CJ41: 2 | CK41: 4 | CL41: 5 | CM41: 1 | CN41: 2 | CO41: 0 | CP41: 1 | CQ41: 3 | CR41: 1 | CS41: 0 | CT41: 2 | CU41: 3 | CV41: 1
AH42: 8 | AI42: 0 | AJ42: 3 | AK42: 6 | AL42: 1 | AM42: 1 | AN42: 8 | AO42: 5 | AP42: 2 | AQ42: 2 | AR42: 2 | AS42: 5 | AT42: 3 | AU42: 6 | AV42: 1 | AW42: 1 | AX42: 8 | AY42: 5 | AZ42: 2 | BA42: 2 | BB42: 2 | BC42: 5 | BD42: 3 | BE42: 2 | BF42: 2 | BG42: 5 | BH42: 2 | BI42: 1 | BJ42: 1 | BK42: 1 | BL42: 2 | BM42: 5 | BN42: 5 | BO42: 2 | BP42: 1 | BQ42: 4 | BR42: 4 | BS42: 4 | BT42: 1 | BU42: 0 | BV42: 7 | BW42: 4 | BX42: 1 | BY42: 1 | BZ42: 1 | CA42: 4 | CB42: 7 | CC42: 4 | CD42: 1 | CE42: 1 | CF42: 1 | CG42: 4 | CH42: 3 | CI42: 6 | CJ42: 6 | CK42: 6 | CL42: 3 | CM42: 3 | CN42: 3 | CO42: 3 | CP42: 0 | CQ42: 0 | CR42: 0 | CS42: 3 | CT42: 0 | CU42: 3 | CV42: 3
AH43: 9 | AI43: 0 | AJ43: 2 | AK43: 3 | AL43: 0 | AM43: 1 | AN43: 2 | AO43: 4 | AP43: 1 | AQ43: 0 | AR43: 1 | AS43: 4 | AT43: 2 | AU43: 3 | AV43: 0 | AW43: 1 | AX43: 2 | AY43: 4 | AZ43: 1 | BA43: 0 | BB43: 1 | BC43: 4 | BD43: 1 | BE43: 2 | BF43: 3 | BG43: 4 | BH43: 2 | BI43: 1 | BJ43: 2 | BK43: 1 | BL43: 2 | BM43: 3 | BN43: 4 | BO43: 5 | BP43: 1 | BQ43: 2 | BR43: 3 | BS43: 2 | BT43: 1 | BU43: 1 | BV43: 2 | BW43: 4 | BX43: 1 | BY43: 0 | BZ43: 1 | CA43: 4 | CB43: 1 | CC43: 5 | CD43: 2 | CE43: 1 | CF43: 2 | CG43: 5 | CH43: 6 | CI43: 3 | CJ43: 2 | CK43: 3 | CL43: 6 | CM43: 3 | CN43: 4 | CO43: 3 | CP43: 0 | CQ43: 1 | CR43: 0 | CS43: 3 | CT43: 1 | CU43: 4 | CV43: 3
AH44: 10 | AI44: 1 | AJ44: 5 | AK44: 2 | AL44: 1 | AM44: 1 | AN44: 2 | AO44: 1 | AP44: 1 | AQ44: 1 | AR44: 3 | AS44: 5 | AT44: 4 | AU44: 1 | AV44: 0 | AW44: 0 | AX44: 1 | AY44: 0 | AZ44: 2 | BA44: 2 | BB44: 2 | BC44: 4 | BD44: 3 | BE44: 4 | BF44: 4 | BG44: 3 | BH44: 4 | BI44: 6 | BJ44: 6 | BK44: 2 | BL44: 0 | BM44: 1 | BN44: 1 | BO44: 0 | BP44: 1 | BQ44: 3 | BR44: 3 | BS44: 1 | BT44: 3 | BU44: 0 | BV44: 1 | BW44: 0 | BX44: 2 | BY44: 2 | BZ44: 2 | CA44: 4 | CB44: 1 | CC44: 0 | CD44: 2 | CE44: 2 | CF44: 2 | CG44: 4 | CH44: 1 | CI44: 3 | CJ44: 3 | CK44: 1 | CL44: 3 | CM44: 2 | CN44: 2 | CO44: 2 | CP44: 4 | CQ44: 0 | CR44: 4 | CS44: 6 | CT44: 4 | CU44: 6 | CV44: 2
AH45: 11 | AI45: 1 | AJ45: 1 | AK45: 0 | AL45: 5 | AM45: 3 | AN45: 2 | AO45: 1 | AP45: 7 | AQ45: 5 | AR45: 3 | AS45: 1 | AT45: 0 | AU45: 1 | AV45: 6 | AW45: 4 | AX45: 3 | AY45: 2 | AZ45: 8 | BA45: 6 | BB45: 4 | BC45: 2 | BD45: 1 | BE45: 6 | BF45: 4 | BG45: 3 | BH45: 2 | BI45: 8 | BJ45: 6 | BK45: 4 | BL45: 2 | BM45: 5 | BN45: 3 | BO45: 2 | BP45: 1 | BQ45: 7 | BR45: 5 | BS45: 3 | BT45: 1 | BU45: 2 | BV45: 3 | BW45: 4 | BX45: 2 | BY45: 0 | BZ45: 2 | CA45: 4 | CB45: 1 | CC45: 2 | CD45: 4 | CE45: 2 | CF45: 0 | CG45: 2 | CH45: 1 | CI45: 5 | CJ45: 3 | CK45: 1 | CL45: 1 | CM45: 6 | CN45: 4 | CO45: 2 | CP45: 0 | CQ45: 2 | CR45: 4 | CS45: 6 | CT45: 2 | CU45: 4 | CV45: 2
AH46: 12 | AI46: 1 | AJ46: 1 | AK46: 1 | AL46: 3 | AM46: 3 | AN46: 2 | AO46: 1 | AP46: 3 | AQ46: 4 | AR46: 1 | AS46: 0 | AT46: 0 | AU46: 0 | AV46: 4 | AW46: 4 | AX46: 3 | AY46: 2 | AZ46: 4 | BA46: 3 | BB46: 0 | BC46: 1 | BD46: 0 | BE46: 4 | BF46: 4 | BG46: 3 | BH46: 2 | BI46: 4 | BJ46: 3 | BK46: 0 | BL46: 1 | BM46: 4 | BN46: 4 | BO46: 3 | BP46: 2 | BQ46: 4 | BR46: 3 | BS46: 0 | BT46: 1 | BU46: 0 | BV46: 1 | BW46: 2 | BX46: 0 | BY46: 7 | BZ46: 4 | CA46: 3 | CB46: 1 | CC46: 2 | CD46: 0 | CE46: 7 | CF46: 4 | CG46: 3 | CH46: 1 | CI46: 1 | CJ46: 6 | CK46: 3 | CL46: 2 | CM46: 2 | CN46: 5 | CO46: 2 | CP46: 1 | CQ46: 7 | CR46: 4 | CS46: 3 | CT46: 3 | CU46: 4 | CV46: 1
AH47: 13 | AI47: 1 | AJ47: 1 | AK47: 1 | AL47: 5 | AM47: 5 | AN47: 7 | AO47: 1 | AP47: 2 | AQ47: 6 | AR47: 2 | AS47: 0 | AT47: 0 | AU47: 2 | AV47: 6 | AW47: 6 | AX47: 8 | AY47: 2 | AZ47: 3 | BA47: 7 | BB47: 3 | BC47: 1 | BD47: 2 | BE47: 6 | BF47: 6 | BG47: 8 | BH47: 2 | BI47: 3 | BJ47: 7 | BK47: 3 | BL47: 1 | BM47: 4 | BN47: 4 | BO47: 6 | BP47: 0 | BQ47: 1 | BR47: 5 | BS47: 1 | BT47: 1 | BU47: 0 | BV47: 2 | BW47: 4 | BX47: 3 | BY47: 1 | BZ47: 3 | CA47: 5 | CB47: 2 | CC47: 4 | CD47: 3 | CE47: 1 | CF47: 3 | CG47: 5 | CH47: 6 | CI47: 5 | CJ47: 1 | CK47: 5 | CL47: 7 | CM47: 1 | CN47: 5 | CO47: 1 | CP47: 1 | CQ47: 4 | CR47: 0 | CS47: 2 | CT47: 4 | CU47: 6 | CV47: 2
AI49: =IFERROR(AVERAGE(AI36:AI47),"") -> 1.166666667 | AJ49: =IFERROR(AVERAGE(AJ36:AJ47),"") -> 2.666666667 | AK49: 2.5 | AL49: 2.833333333 | AM49: 2.416666667 | AN49: 3.5 | AO49: 2 | AP49: 2.666666667 | AQ49: 2.333333333 | AR49: 2 | AS49: 2.416666667 | AT49: 2 | AU49: 2.833333333 | AV49: 3.333333333 | AW49: 2.75 | AX49: 4.5 | AY49: 2.333333333 | AZ49: 3.5 | BA49: 2.833333333 | BB49: 2 | BC49: 2.416666667 | BD49: 2.333333333 | BE49: 4.5 | BF49: 4.083333333 | BG49: 4.166666667 | BH49: 2.166666667 | BI49: 3.666666667 | BJ49: 3.833333333 | BK49: 2.666666667 | BL49: 1.416666667 | BM49: 3 | BN49: 2.75 | BO49: 2.666666667 | BP49: 1.666666667 | BQ49: 3 | BR49: 3.333333333 | BS49: 2 | BT49: 1.583333333 | BU49: 1.25 | BV49: 3.333333333 | BW49: 3 | BX49: 1.833333333 | BY49: 2 | BZ49: 2.166666667 | CA49: 3.75 | CB49: 2.75 | CC49: 2.583333333 | CD49: 2.583333333 | CE49: 2.583333333 | CF49: 1.583333333 | CG49: 3.5 | CH49: 3.333333333 | CI49: 3.666666667 | CJ49: 3.5 | CK49: 3.666666667 | CL49: 3.75 | CM49: 2.5 | CN49: 3 | CO49: 2.166666667 | CP49: 1.416666667 | CQ49: 1.833333333 | CR49: 2.666666667 | CS49: 3.25 | CT49: 2.666666667 | CU49: 3.916666667 | CV49: =IFERROR(AVERAGE(CV36:CV47),"") -> 2.25
AG51: Main Distance Data!!!
AD52: Start Position | AI52: =+AH53 -> Coke | AJ52: =+AH54 -> Pepsi | AK52: =+AH55 -> Fanta | AL52: =+AH56 -> Sprite | AM52: =+AH57 -> Pepsi Max | AN52: =+AH58 -> Coke Zero | AO52: =+AH59 -> Water | AP52: =+AH60 -> Mt Dew | AQ52: =+AH61 -> Dr Pepper | AR52: =+AH62 -> Diet Coke | AS52: =+AH63 -> Pepsi Next | AT52: =+AH64 -> Lift | AU52: =+AH65 -> Sweet | AV52: =+AH66 -> For Kids | AW52: =+AH67 -> High caffeine | AX52: =+AH68 -> Modern | AY52: =+AH69 -> Low in sugar | AZ52: =+AH70 -> Trusted | BA52: =+AH71 -> Clear | BB52: =+AH72 -> Tangy | BC52: =+AH73 -> Adult | BD52: =+AH74 -> Bitter | BE52: =+AH75 -> Feminine | BF52: =+AH76 -> For diets
AD53: 3 | AE53: 3 | AG53: 1 | AH53: =IF(D17="","",+D17) -> Coke | AI53: 0
AD54: =IF($AI54="",0,+$AI54) -> 1.166666667 | AE54: =IF($AI54="",0,0) -> 0 | AG54: =+AG53+1 -> 2 | AH54: Pepsi | AI54: =+AI49 -> 1.166666667 | AJ54: 0
AD55: =IF($AI55="",0,0) -> 0 | AE55: =IF($AI55="",0,+$AI55) -> 2.666666667 | AG55: =+AG54+1 -> 3 | AH55: Fanta | AI55: =+AJ49 -> 2.666666667 | AJ55: =+AT49 -> 2 | AK55: 0
D56: Part A: Select Options | E56: Part B: Select Add-ins | I56: Part C: Select Go | P56: Part D: Tick Solver Add-in | AD56: =IF($AI56="",0,+$AI56) -> 2.5 | AE56: =IF($AI56="",0,0) -> 0 | AG56: 4 | AH56: Sprite | AI56: =+AK49 -> 2.5 | AJ56: =+AU49 -> 2.833333333 | AK56: =+BD49 -> 2.333333333 | AL56: 0
AD57: =IF($AI57="",0,0) -> 0 | AE57: =IF($AI57="",0,+$AI57) -> 2.833333333 | AG57: 5 | AH57: Pepsi Max | AI57: =+AL49 -> 2.833333333 | AJ57: =+AV49 -> 3.333333333 | AK57: =+BE49 -> 4.5 | AL57: =+BM49 -> 3 | AM57: 0
AD58: =IF($AI58="",0,+$AI58) -> 2.416666667 | AE58: =IF($AI58="",0,0) -> 0 | AG58: 6 | AH58: Coke Zero | AI58: =+AM49 -> 2.416666667 | AJ58: =+AW49 -> 2.75 | AK58: =+BF49 -> 4.083333333 | AL58: =+BN49 -> 2.75 | AM58: =+BU49 -> 1.25 | AN58: 0
D59: STEP SIX | E59: IMPORTANT: Save the spreadsheet and exit Excel, then reopen the spreadsheet | AD59: =IF($AI59="",0,0) -> 0 | AE59: =IF($AI59="",0,+$AI59) -> 3.5 | AG59: 7 | AH59: Water | AI59: =+AN49 -> 3.5 | AJ59: =+AX49 -> 4.5 | AK59: =+BG49 -> 4.166666667 | AL59: =+BO49 -> 2.666666667 | AM59: =+BV49 -> 3.333333333 | AN59: =+CB49 -> 2.75 | AO59: 0
E60: Note: You need to save, exit and reopen Excel in order for the Solver Add-in to be loaded into the spreadsheet | AD60: =IF($AI60="",0,+$AI60) -> 2 | AE60: =IF($AI60="",0,0) -> 0 | AG60: 8 | AH60: Mt Dew | AI60: =+AO49 -> 2 | AJ60: =+AY49 -> 2.333333333 | AK60: =+BH49 -> 2.166666667 | AL60: =+BP49 -> 1.666666667 | AM60: =+BW49 -> 3 | AN60: =+CC49 -> 2.583333333 | AO60: =+CH49 -> 3.333333333 | AP60: 0
E61: Solver should then appear under Data in the top menu, as shown below | AD61: =IF($AI61="",0,0) -> 0 | AE61: =IF($AI61="",0,+$AI61) -> 2.666666667 | AG61: 9 | AH61: Dr Pepper | AI61: =+AP49 -> 2.666666667 | AJ61: =+AZ49 -> 3.5 | AK61: =+BI49 -> 3.666666667 | AL61: =+BQ49 -> 3 | AM61: =+BX49 -> 1.833333333 | AN61: =+CD49 -> 2.583333333 | AO61: =+CI49 -> 3.666666667 | AP61: =+CM49 -> 2.5 | AQ61: 0
AD62: =IF($AI62="",0,+$AI62) -> 2.333333333 | AE62: =IF($AI62="",0,0) -> 0 | AG62: 10 | AH62: Diet Coke | AI62: =+AQ49 -> 2.333333333 | AJ62: =+BA49 -> 2.833333333 | AK62: =+BJ49 -> 3.833333333 | AL62: =+BR49 -> 3.333333333 | AM62: =+BY49 -> 2 | AN62: =+CE49 -> 2.583333333 | AO62: =+CJ49 -> 3.5 | AP62: =+CN49 -> 3 | AQ62: =+CQ49 -> 1.833333333 | AR62: 0
AD63: =IF($AI63="",0,0) -> 0 | AE63: =IF($AI63="",0,+$AI63) -> 2 | AG63: 11 | AH63: Pepsi Next | AI63: =+AR49 -> 2 | AJ63: =+BB49 -> 2 | AK63: =+BK49 -> 2.666666667 | AL63: =+BS49 -> 2 | AM63: =+BZ49 -> 2.166666667 | AN63: =+CF49 -> 1.583333333 | AO63: =+CK49 -> 3.666666667 | AP63: =+CO49 -> 2.166666667 | AQ63: =+CR49 -> 2.666666667 | AR63: =+CT49 -> 2.666666667 | AS63: 0
AD64: =IF($AI64="",0,+$AI64) -> 2.416666667 | AE64: =IF($AI64="",0,0) -> 0 | AG64: 12 | AH64: Lift | AI64: =+AS49 -> 2.416666667 | AJ64: =+BC49 -> 2.416666667 | AK64: =+BL49 -> 1.416666667 | AL64: =+BT49 -> 1.583333333 | AM64: =+CA49 -> 3.75 | AN64: =+CG49 -> 3.5 | AO64: =+CL49 -> 3.75 | AP64: =+CP49 -> 1.416666667 | AQ64: =+CS49 -> 3.25 | AR64: =+CU49 -> 3.916666667 | AS64: =+CV49 -> 2.25 | AT64: 0
AD65: =IF($AI65="",0,0) -> 0 | AE65: =IF($AI65="",0,+$AI65) -> 2.117835968 | AG65: 13 | AH65: =+IF(E16="","",E16) -> Sweet | AI65: =+AH253 -> 2.117835968 | AJ65: =+AI253 -> 0.5 | AK65: 1.039278656 | AL65: 3.196393281 | AM65: 3.735671937 | AN65: 2.657114625 | AO65: 4.274950593 | AP65: 1.039278656 | AQ65: 4.274950593 | AR65: 3.735671937 | AS65: 2.117835968 | AT65: 1.039278656 | AU65: 0
AD66: =IF($AI66="",0,+$AI66) -> 2.657114625 | AE66: =IF($AI66="",0,0) -> 0 | AG66: 14 | AH66: =+IF(F16="","",F16) -> For Kids | AI66: =+AH254 -> 2.657114625 | AJ66: 2.117835968 | AK66: 0.5 | AL66: 3.196393281 | AM66: 4.274950593 | AN66: 3.196393281 | AO66: 2.657114625 | AP66: 3.196393281 | AQ66: 4.814229249 | AR66: 4.274950593 | AS66: 2.117835968 | AT66: 2.117835968 | AU66: =+AI30 -> 1.5 | AV66: 0
AD67: =IF($AI67="",0,0) -> 0 | AE67: =IF($AI67="",0,+$AI67) -> 1.578557312 | AG67: 15 | AH67: =+IF(G16="","",G16) -> High caffeine | AI67: 1.578557312 | AJ67: 1.578557312 | AK67: 4.274950593 | AL67: 4.814229249 | AM67: 0.5 | AN67: 1.578557312 | AO67: 4.814229249 | AP67: 2.117835968 | AQ67: 2.657114625 | AR67: 1.578557312 | AS67: 1.039278656 | AT67: 4.274950593 | AU67: =+AJ30 -> 3.166666667 | AV67: =+AT30 -> 3.666666667 | AW67: 0
AD68: =IF($AI68="",0,+$AI68) -> 2.657114625 | AE68: =IF($AI68="",0,0) -> 0 | AG68: 16 | AH68: =+IF(H16="","",H16) -> Modern | AI68: 2.657114625 | AJ68: 1.578557312 | AK68: 3.735671937 | AL68: 2.117835968 | AM68: 2.117835968 | AN68: 1.039278656 | AO68: 4.274950593 | AP68: 3.735671937 | AQ68: 3.196393281 | AR68: 3.196393281 | AS68: 1.039278656 | AT68: 2.117835968 | AU68: =+AK30 -> 2.333333333 | AV68: =+AU30 -> 2.333333333 | AW68: =+BD30 -> 2 | AX68: 0
D69: STEP SEVEN | AD69: =IF($AI69="",0,0) -> 0 | AE69: =IF($AI69="",0,+$AI69) -> 3.735671937 | AG69: 17 | AH69: =+IF(I16="","",I16) -> Low in sugar | AI69: 3.735671937 | AJ69: 4.814229249 | AK69: 4.814229249 | AL69: 2.117835968 | AM69: 1.578557312 | AN69: 0.5 | AO69: 0.5 | AP69: 3.196393281 | AQ69: 3.735671937 | AR69: 4.274950593 | AS69: 2.117835968 | AT69: 3.735671937 | AU69: =+AL30 -> 3.833333333 | AV69: =+AV30 -> 3 | AW69: =+BE30 -> 3.333333333 | AX69: =+BM30 -> 2.333333333 | AY69: 0
AD70: =IF($AI70="",0,+$AI70) -> 0.5 | AE70: =IF($AI70="",0,0) -> 0 | AG70: 18 | AH70: =+IF(J16="","",J16) -> Trusted | AI70: 0.5 | AJ70: 1.578557312 | AK70: 2.657114625 | AL70: 2.657114625 | AM70: 3.735671937 | AN70: 2.657114625 | AO70: 0.5 | AP70: 2.657114625 | AQ70: 3.196393281 | AR70: 1.578557312 | AS70: 2.657114625 | AT70: 3.196393281 | AU70: =+AM30 -> 2.5 | AV70: =+AW30 -> 2.333333333 | AW70: =+BF30 -> 2.666666667 | AX70: =+BN30 -> 2.5 | AY70: =+BU30 -> 2.833333333 | AZ70: 0
AD71: =IF($AI71="",0,0) -> 0 | AE71: =IF($AI71="",0,+$AI71) -> 4.814229249 | AG71: 19 | AH71: =+IF(K16="","",K16) -> Clear | AI71: 4.814229249 | AJ71: 4.814229249 | AK71: 3.196393281 | AL71: 1.578557312 | AM71: 4.274950593 | AN71: 4.274950593 | AO71: 0.5 | AP71: 2.117835968 | AQ71: 3.735671937 | AR71: 3.735671937 | AS71: 3.735671937 | AT71: 2.117835968 | AU71: =+AN30 -> 3.25 | AV71: =+AX30 -> 2.583333333 | AW71: =+BG30 -> 4.583333333 | AX71: =+BO30 -> 3.25 | AY71: =+BV30 -> 2.25 | AZ71: =+CB30 -> 2.583333333 | BA71: 0
AD72: =IF($AI72="",0,+$AI72) -> 2.657114625 | AE72: =IF($AI72="",0,0) -> 0 | AG72: 20 | AH72: =+IF(L16="","",L16) -> Tangy | AI72: 2.657114625 | AJ72: 2.657114625 | AK72: 1.578557312 | AL72: 1.039278656 | AM72: 2.657114625 | AN72: 3.196393281 | AO72: 3.735671937 | AP72: 0.5 | AQ72: 2.117835968 | AR72: 2.657114625 | AS72: 2.117835968 | AT72: 0.5 | AU72: =+AO30 -> 1.833333333 | AV72: =+AY30 -> 2.333333333 | AW72: =+BH30 -> 3.333333333 | AX72: =+BP30 -> 2.333333333 | AY72: =+BW30 -> 3.666666667 | AZ72: =+CC30 -> 2.833333333 | BA72: =+CH30 -> 3.083333333 | BB72: 0
AD73: =IF($AI73="",0,0) -> 0 | AE73: =IF($AI73="",0,+$AI73) -> 1.578557312 | AG73: 21 | AH73: =+IF(M16="","",M16) -> Adult | AI73: 1.578557312 | AJ73: 2.117835968 | AK73: 4.274950593 | AL73: 2.657114625 | AM73: 2.117835968 | AN73: 2.117835968 | AO73: 2.657114625 | AP73: 2.117835968 | AQ73: 1.039278656 | AR73: 1.039278656 | AS73: 3.196393281 | AT73: 4.274950593 | AU73: =+AP30 -> 3.25 | AV73: =+AZ30 -> 3.083333333 | AW73: =+BI30 -> 1.75 | AX73: =+BQ30 -> 2.416666667 | AY73: =+BX30 -> 2.916666667 | AZ73: =+CD30 -> 1.916666667 | BA73: =+CI30 -> 3.5 | BB73: =+CM30 -> 2.75 | BC73: 0
E74: Note: It may take up to 15 seconds to calculate | AD74: =IF($AI74="",0,+$AI74) -> 4.274950593 | AE74: =IF($AI74="",0,0) -> 0 | AG74: 22 | AH74: =+IF(N16="","",N16) -> Bitter | AI74: 4.274950593 | AJ74: 4.814229249 | AK74: 4.814229249 | AL74: 4.274950593 | AM74: 1.578557312 | AN74: 2.657114625 | AO74: 3.196393281 | AP74: 3.735671937 | AQ74: 0.5 | AR74: 1.578557312 | AS74: 2.657114625 | AT74: 3.735671937 | AU74: =+AQ30 -> 4.083333333 | AV74: =+BA30 -> 3.583333333 | AW74: =+BJ30 -> 2.583333333 | AX74: =+BR30 -> 2.916666667 | AY74: =+BY30 -> 2.25 | AZ74: =+CE30 -> 3.083333333 | BA74: =+CJ30 -> 3.333333333 | BB74: =+CN30 -> 3.416666667 | BC74: =+CQ30 -> 2 | BD74: 0
AD75: =IF($AI75="",0,0) -> 0 | AE75: =IF($AI75="",0,+$AI75) -> 2.657114625 | AG75: 23 | AH75: =+IF(O16="","",O16) -> Feminine | AI75: 2.657114625 | AJ75: 2.117835968 | AK75: 2.117835968 | AL75: 2.117835968 | AM75: 4.274950593 | AN75: 4.274950593 | AO75: 3.735671937 | AP75: 3.196393281 | AQ75: 4.274950593 | AR75: 0.5 | AS75: 2.117835968 | AT75: 2.657114625 | AU75: =+AR30 -> 2.166666667 | AV75: =+BB30 -> 1.5 | AW75: =+BK30 -> 3.166666667 | AX75: =+BS30 -> 2.166666667 | AY75: =+BZ30 -> 3.333333333 | AZ75: =+CF30 -> 2 | BA75: =+CK30 -> 2.583333333 | BB75: =+CO30 -> 2.166666667 | BC75: =+CR30 -> 2.583333333 | BD75: =+CT30 -> 3.25 | BE75: 0
AD76: =IF($AI76="",0,+$AI76) -> 4.274950593 | AE76: =IF($AI76="",0,0) -> 0 | AG76: 24 | AH76: =+IF(P16="","",P16) -> For diets | AI76: 4.274950593 | AJ76: 4.814229249 | AK76: 4.814229249 | AL76: 3.735671937 | AM76: 1.578557312 | AN76: 1.578557312 | AO76: 0.5 | AP76: 3.735671937 | AQ76: 3.196393281 | AR76: 1.039278656 | AS76: 3.196393281 | AT76: 4.274950593 | AU76: =+AS30 -> 4.416666667 | AV76: =+BC30 -> 3.75 | AW76: =+BL30 -> 2.75 | AX76: =+BT30 -> 2.916666667 | AY76: =+CA30 -> 1.416666667 | AZ76: =+CG30 -> 2.583333333 | BA76: =+CL30 -> 2.666666667 | BB76: =+CP30 -> 4.083333333 | BC76: =+CS30 -> 2.166666667 | BD76: =+CU30 -> 1.333333333 | BE76: =+CV30 -> 3.416666667 | BF76: =+BE250 -> 0
AI77: =SUM(AI53:AI76) -> 60.00321146 | AJ77: =SUM(AJ53:AJ76) -> 62.00321146 | AK77: 66.65077404 | AL77: 53.50321146 | AM77: 49.75798748 | AN77: 45.3115942 | AO77: 49.2627635 | AP77: 40.42943017 | AQ77: 44.4888834 | AR77: 35.77231555 | AS77: 30.3604249 | AT77: 34.04249012 | AU77: 32.33333333 | AV77: 28.16666667 | AW77: 26.16666667 | AX77: 20.83333333 | AY77: 18.66666667 | AZ77: 15 | BA77: 15.16666667 | BB77: 12.41666667 | BC77: 6.75 | BD77: 4.583333333 | BE77: 3.416666667 | BF77: =SUM(BF53:BF76) -> 0
AF78: 4.5
Z79: Final points | AC79: Mapping Points | AH79: Start Point | AI79: Calculated Points | AK79: =+AF80 -> 1 | AL79: =+AF81 -> 1 | AM79: =+AF82 -> 1 | AN79: =+AF83 -> 1 | AO79: =+AF84 -> 1 | AP79: =+AF85 -> 1 | AQ79: =+AF86 -> 1 | AR79: =+AF87 -> 1 | AS79: =+AF88 -> 1 | AT79: =+AF89 -> 1 | AU79: =+AF90 -> 1 | AV79: =+AF91 -> 1 | AW79: =+AF92 -> 1 | AX79: =+AF93 -> 1 | AY79: =+AF94 -> 1 | AZ79: =+AF95 -> 1 | BA79: =+AF96 -> 1 | BB79: =+AF97 -> 1 | BC79: =+AF98 -> 1 | BD79: =+AF99 -> 1 | BE79: =+AF100 -> 1 | BF79: =+AF101 -> 1 | BG79: =+AF102 -> 1 | BH79: =+AF103 -> 1
U80: 0 | W80: 0 | X80: 0 | Z80: =+IF($AF80=1,(AC80+$AD$107)*$AD$109,"") -> 6.314774297 | AA80: =+IF($AF80=1,(AD80+$AD$107)*$AD$109,"") -> 6.629604606 | AC80: =IF($AF80=1,AI80,"") -> 3.875702176 | AD80: =IF($AF80=1,AJ80,"") -> 4.118755207 | AF80: =IF(E17>0.5,1,0) -> 1 | AH80: =+AH53 -> Coke | AI80: 3.875702176 | AJ80: 4.118755207
U81: 0 | W81: 0 | X81: 0 | Z81: =+IF($AF81=1,(AC81+$AD$107)*$AD$109,"") -> 7.323566879 | AA81: =+IF($AF81=1,(AD81+$AD$107)*$AD$109,"") -> 6.166181165 | AC81: =IF($AF81=1,AI81,"") -> 4.654502968 | AD81: 3.760986376 | AF81: 1 | AH81: =+AH54 -> Pepsi | AI81: 4.654502968 | AJ81: 3.760986376 | AK81: =IFERROR(IF(OR($AF81=0,AK$79=0),"",SQRT(($AI$80-$AI81)^2+($AJ$80-$AJ81)^2)),"") -> 0.8570467949
U82: 0 | W82: 0 | X82: 0 | Z82: 8 | AA82: 3.027764458 | AC82: 5.176717999 | AD82: 1.338088491 | AF82: 1 | AH82: Fanta | AI82: 5.176717999 | AJ82: 1.338088491 | AK82: 3.069975498 | AL82: =IFERROR(IF(OR($AF82=0,AL$79=0),"",SQRT(($AI$81-$AI82)^2+($AJ$81-$AJ82)^2)),"") -> 2.478536403 | AQ82: `
U83: 0 | W83: 0 | X83: 0 | Z83: 4.889479281 | AA83: 2.437632545 | AC83: 2.775356174 | AD83: 0.8824990974 | AF83: 1 | AH83: Sprite | AI83: 2.775356174 | AJ83: 0.8824990974 | AK83: 3.418203466 | AL83: =IFERROR(IF(OR($AF83=0,AL$79=0),"",SQRT(($AI$81-$AI83)^2+($AJ$81-$AJ83)^2)),"") -> 3.437569154 | AM83: =IFERROR(IF(OR($AF83=0,AM$79=0),"",SQRT(($AI$82-$AI83)^2+($AJ$82-$AJ83)^2)),"") -> 2.444197273
U84: 0 | W84: 0 | X84: 0 | Z84: 2.467468492 | AA84: 6.573291839 | AC84: 0.9055328304 | AD84: 4.075281029 | AF84: 1 | AH84: Pepsi Max | AI84: 0.9055328304 | AJ84: 4.075281029 | AK84: 2.970487493 | AL84: 3.762121505 | AM84: =IFERROR(IF(OR($AF84=0,AM$79=0),"",SQRT(($AI$82-$AI84)^2+($AJ$82-$AJ84)^2)),"") -> 5.072991794 | AN84: =IFERROR(IF(OR($AF84=0,AN$79=0),"",SQRT(($AI$83-$AI84)^2+($AJ$83-$AJ84)^2)),"") -> 3.700012946
U85: 0 | W85: 0 | X85: 0 | Z85: 2.888673444 | AA85: 5.25807869 | AC85: 1.230708447 | AD85: 3.059919637 | AF85: 1 | AH85: Coke Zero | AI85: 1.230708447 | AJ85: 3.059919637 | AK85: 2.84905679 | AL85: 3.49483383 | AM85: 4.305309964 | AN85: =IFERROR(IF(OR($AF85=0,AN$79=0),"",SQRT(($AI$83-$AI85)^2+($AJ$83-$AJ85)^2)),"") -> 2.669662302 | AO85: =IFERROR(IF(OR($AF85=0,AO$79=0),"",SQRT(($AI$84-$AI85)^2+($AJ$84-$AJ85)^2)),"") -> 1.066160372
U86: 0 | W86: 0 | X86: 0 | Z86: 2.108069568 | AA86: 2.374717753 | AC86: 0.628072259 | AD86: 0.8339280723 | AF86: 1 | AH86: Water | AI86: 0.628072259 | AJ86: 0.8339280723 | AK86: 4.619219564 | AL86: 4.977932761 | AM86: 4.576500387 | AN86: =IFERROR(IF(OR($AF86=0,AN$79=0),"",SQRT(($AI$83-$AI86)^2+($AJ$83-$AJ86)^2)),"") -> 2.147833177 | AO86: =IFERROR(IF(OR($AF86=0,AO$79=0),"",SQRT(($AI$84-$AI86)^2+($AJ$84-$AJ86)^2)),"") -> 3.253206627 | AP86: =IFERROR(IF(OR($AF86=0,AP$79=0),"",SQRT(($AI$85-$AI86)^2+($AJ$85-$AJ86)^2)),"") -> 2.306124199
M87: STEP EIGHT | O87: Copy Your Map to Word or PP | U87: 0 | W87: 0 | X87: 0 | Z87: 6.659428469 | AA87: 4.976124252 | AC87: 4.141779611 | AD87: 2.842247201 | AF87: 1 | AH87: Mt Dew | AI87: 4.141779611 | AJ87: 2.842247201 | AK87: 1.303943975 | AL87: 1.052124951 | AM87: 1.825812392 | AN87: 2.389084687 | AO87: 3.46318721 | AP87: =IFERROR(IF(OR($AF87=0,AP$79=0),"",SQRT(($AI$85-$AI87)^2+($AJ$85-$AJ87)^2)),"") -> 2.91919794 | AQ87: =IFERROR(IF(OR($AF87=0,AQ$79=0),"",SQRT(($AI$86-$AI87)^2+($AJ$86-$AJ87)^2)),"") -> 4.047157654
M88: To maintain the formatting of the map | U88: 0 | W88: 0 | X88: 0 | Z88: 3.011839983 | AA88: 7.629256178 | AC88: 1.325794592 | AD88: 4.890499021 | AF88: 1 | AH88: Dr Pepper | AI88: 1.325794592 | AJ88: 4.890499021 | AK88: 2.664135357 | AL88: 3.515124218 | AM88: 5.239201433 | AN88: 4.262076039 | AO88: 0.9171697345 | AP88: 1.83304726 | AQ88: =IFERROR(IF(OR($AF88=0,AQ$79=0),"",SQRT(($AI$86-$AI88)^2+($AJ$86-$AJ88)^2)),"") -> 4.116137062 | AR88: =IFERROR(IF(OR($AF88=0,AR$79=0),"",SQRT(($AI$87-$AI88)^2+($AJ$87-$AJ88)^2)),"") -> 3.482112454
M89: when you copy it: | U89: 0 | W89: 0 | X89: 0 | Z89: 3.675006636 | AA89: 6.991701088 | AC89: 1.83776774 | AD89: 4.398298327 | AF89: 1 | AH89: Diet Coke | AI89: 1.83776774 | AJ89: 4.398298327 | AK89: 2.057017531 | AL89: 2.887934186 | AM89: 4.529180177 | AN89: 3.638669578 | AO89: 0.9866114241 | AP89: 1.46961849 | AQ89: 3.764053463 | AR89: =IFERROR(IF(OR($AF89=0,AR$79=0),"",SQRT(($AI$87-$AI89)^2+($AJ$87-$AJ89)^2)),"") -> 2.780245638 | AS89: =IFERROR(IF(OR($AF89=0,AS$79=0),"",SQRT(($AI$88-$AI89)^2+($AJ$88-$AJ89)^2)),"") -> 0.7101957668
M90: 1 | N90: Click on the edge of the map | U90: 0 | W90: 0 | X90: 0 | Z90: 5.326707686 | AA90: 5.518080598 | AC90: 3.112902101 | AD90: 3.260644439 | AF90: 1 | AH90: Pepsi Next | AI90: 3.112902101 | AJ90: 3.260644439 | AK90: 1.148136771 | AL90: 1.620763797 | AM90: 2.820559773 | AN90: 2.401980957 | AO90: 2.35289436 | AP90: 1.89286645 | AQ90: 3.473230725 | AR90: 1.110695809 | AS90: =IFERROR(IF(OR($AF90=0,AS$79=0),"",SQRT(($AI$88-$AI90)^2+($AJ$88-$AJ90)^2)),"") -> 2.41871437 | AT90: =IFERROR(IF(OR($AF90=0,AT$79=0),"",SQRT(($AI$89-$AI90)^2+($AJ$89-$AJ90)^2)),"") -> 1.708866293
N91: to highlight it | U91: 0 | W91: 0 | X91: 0 | Z91: 7.321866825 | AA91: 3.580337957 | AC91: 4.653190504 | AD91: 1.764682308 | AF91: 1 | AH91: Lift | AI91: 4.653190504 | AJ91: 1.764682308 | AK91: 2.479142455 | AL91: 1.9963045 | AM91: 0.6753246053 | AN91: 2.074731064 | AO91: 4.402704225 | AP91: 3.659374697 | AQ91: 4.131329124 | AR91: 1.19276452 | AS91: 4.565336097 | AT91: =IFERROR(IF(OR($AF91=0,AT$79=0),"",SQRT(($AI$89-$AI91)^2+($AJ$89-$AJ91)^2)),"") -> 3.855196321 | AU91: =IFERROR(IF(OR($AF91=0,AU$79=0),"",SQRT(($AI$90-$AI91)^2+($AJ$90-$AJ91)^2)),"") -> 2.147182122
U92: 0 | W92: 0 | X92: 0 | Z92: 7.691087929 | AA92: 4.686813648 | AC92: 4.938233924 | AD92: 2.61889571 | AF92: =IF(E17>0.5,1,0) -> 1 | AH92: Sweet | AI92: 4.938233924 | AJ92: 2.61889571 | AK92: 1.838083846 | AL92: 1.176806843 | AM92: 1.302820704 | AN92: 2.773646221 | AO92: 4.287625953 | AP92: 3.733664054 | AQ92: 4.665147698 | AR92: 0.8271791592 | AS92: 4.267305887 | AT92: 3.574795691 | AU92: =IFERROR(IF(OR($AF92=0,AU$79=0),"",SQRT(($AI$90-$AI92)^2+($AJ$90-$AJ92)^2)),"") -> 1.934858573 | AV92: =IFERROR(IF(OR($AF92=0,AV$79=0),"",SQRT(($AI$91-$AI92)^2+($AJ$91-$AJ92)^2)),"") -> 0.9005166784
M93: 2 | N93: Select 'copy' from the above menu | U93: 0 | W93: 0 | X93: 0 | Z93: 6.688505646 | AA93: 2.353982256 | AC93: 4.164227564 | AD93: 0.817920003 | AF93: =IF(F17>0.5,1,0) -> 1 | AH93: For Kids | AI93: 4.164227564 | AJ93: 0.817920003 | AK93: 3.313421184 | AL93: 2.983623577 | AM93: 1.13829352 | AN93: 1.390371964 | AO93: 4.607547311 | AP93: 3.692166948 | AQ93: 3.536191539 | AR93: 2.024451658 | AS93: 4.964131504 | AT93: 4.269838903 | AU93: 2.659358551 | AV93: =IFERROR(IF(OR($AF93=0,AV$79=0),"",SQRT(($AI$91-$AI93)^2+($AJ$91-$AJ93)^2)),"") -> 1.065571968 | AW93: =IFERROR(IF(OR($AF93=0,AW$79=0),"",SQRT(($AI$92-$AI93)^2+($AJ$92-$AJ93)^2)),"") -> 1.960254918
U94: 0 | W94: 0 | X94: 0 | Z94: 4.812498999 | AA94: 7.666935064 | AC94: 2.71592641 | AD94: 4.919587603 | AF94: =IF(G17>0.5,1,0) -> 1 | AH94: High caffeine | AI94: 2.71592641 | AJ94: 4.919587603 | AK94: 1.409401418 | AL94: 2.25841446 | AM94: 4.345414956 | AN94: 4.037525913 | AO94: 1.997593178 | AP94: 2.379965828 | AQ94: 4.588218473 | AR94: 2.519603242 | AS94: 1.390436124 | AT94: 1.02122728 | AU94: 1.705779036 | AV94: 3.702218199 | AW94: =IFERROR(IF(OR($AF94=0,AW$79=0),"",SQRT(($AI$92-$AI94)^2+($AJ$92-$AJ94)^2)),"") -> 3.198723789 | AX94: =IFERROR(IF(OR($AF94=0,AX$79=0),"",SQRT(($AI$93-$AI94)^2+($AJ$93-$AJ94)^2)),"") -> 4.349856703
M95: 3 | N95: Go to your Word or P/Point document | U95: 0 | W95: 0 | X95: 0 | Z95: 4.619865061 | AA95: 5.036309071 | AC95: 2.567210544 | AD95: 2.888710651 | AF95: =IF(H17>0.5,1,0) -> 1 | AH95: Modern | AI95: 2.567210544 | AJ95: 2.888710651 | AK95: 1.795873036 | AL95: 2.262223377 | AM95: 3.035450254 | AN95: 2.016980268 | AO95: 2.041842816 | AP95: 1.347423605 | AQ95: 2.825312148 | AR95: 1.575254456 | AS95: 2.355476648 | AT95: 1.67658634 | AU95: 0.6603892931 | AV95: 2.369546816 | AW95: 2.386326041 | AX95: =IFERROR(IF(OR($AF95=0,AX$79=0),"",SQRT(($AI$93-$AI95)^2+($AJ$93-$AJ95)^2)),"") -> 2.615078827 | AY95: =IFERROR(IF(OR($AF95=0,AY$79=0),"",SQRT(($AI$94-$AI95)^2+($AJ$94-$AJ95)^2)),"") -> 2.036314711
U96: 0 | W96: 0 | X96: 0 | Z96: 1.911832821 | AA96: 3.35104359 | AC96: 0.4765749778 | AD96: 1.58766412 | AF96: =IF(I17>0.5,1,0) -> 1 | AH96: Low in sugar | AI96: 0.4765749778 | AJ96: 1.58766412 | AK96: 4.237981572 | AL96: 4.709396131 | AM96: 4.706764538 | AN96: 2.404506747 | AO96: 2.524330154 | AP96: 1.654162506 | AQ96: 0.7688104163 | AR96: 3.873977763 | AS96: 3.410262795 | AT96: 3.122900956 | AU96: 3.122352294 | AV96: 4.180365139 | AW96: 4.579283694 | AX96: 3.767132544 | AY96: =IFERROR(IF(OR($AF96=0,AY$79=0),"",SQRT(($AI$94-$AI96)^2+($AJ$94-$AJ96)^2)),"") -> 4.014524746 | AZ96: =IFERROR(IF(OR($AF96=0,AZ$79=0),"",SQRT(($AI$95-$AI96)^2+($AJ$95-$AJ96)^2)),"") -> 2.462413277
M97: 4 | N97: Select 'paste', then 'paste special' | U97: 0 | W97: 0 | X97: 0 | Z97: 4.141164364 | AA97: 3.764274319 | AC97: 2.197647475 | AD97: 1.906683535 | AF97: =IF(J17>0.5,1,0) -> 1 | AH97: Trusted | AI97: 2.197647475 | AJ97: 1.906683535 | AK97: 2.776531769 | AL97: 3.078080236 | AM97: 3.032847096 | AN97: 1.175883116 | AO97: 2.524356423 | AP97: 1.504966642 | AQ97: 1.901149821 | AR97: 2.157528478 | AS97: 3.108582041 | AT97: 2.517470496 | AU97: 1.634289191 | AV97: 2.459645486 | AW97: 2.831617959 | AX97: 2.247853036 | AY97: 3.057156192 | AZ97: =IFERROR(IF(OR($AF97=0,AZ$79=0),"",SQRT(($AI$95-$AI97)^2+($AJ$95-$AJ97)^2)),"") -> 1.049263608 | BA97: =IFERROR(IF(OR($AF97=0,BA$79=0),"",SQRT(($AI$96-$AI97)^2+($AJ$96-$AJ97)^2)),"") -> 1.75038965
N98: and choose 'picture'. | U98: 0 | W98: 0 | X98: 0 | Z98: 3.595299901 | AA98: 1.295315302 | AC98: 1.77623312 | AD98: 0.0006155586057 | AF98: =IF(K17>0.5,1,0) -> 1 | AH98: Clear | AI98: 1.77623312 | AJ98: 0.0006155586057 | AK98: 4.622428418 | AL98: 4.735485826 | AM98: 3.654056821 | AN98: 1.332653538 | AO98: 4.166655457 | AP98: 3.107561522 | AQ98: 1.418690632 | AR98: 3.697388347 | AS98: 4.910586028 | AT98: 4.398113259 | AU98: 3.523417697 | AV98: 3.374731883 | AW98: 4.105318506 | AX98: 2.52398574 | AY98: 5.007924665 | AZ98: 2.994451293 | BA98: =IFERROR(IF(OR($AF98=0,BA$79=0),"",SQRT(($AI$96-$AI98)^2+($AJ$96-$AJ98)^2)),"") -> 2.051300666 | BB98: =IFERROR(IF(OR($AF98=0,BB$79=0),"",SQRT(($AI$97-$AI98)^2+($AJ$97-$AJ98)^2)),"") -> 1.952097638
U99: 0 | W99: 0 | X99: 0 | Z99: 6.588719283 | AA99: 4.158470312 | AC99: 4.087191214 | AD99: 2.211007889 | AF99: =IF(L17>0.5,1,0) -> 1 | AH99: Tangy | AI99: 4.087191214 | AJ99: 2.211007889 | AK99: 1.919434146 | AL99: 1.650538075 | AM99: 1.396086276 | AN99: 1.867042255 | AO99: 3.68760958 | AP99: 2.979957207 | AQ99: 3.723150919 | AR99: 0.633595267 | AS99: 3.847724526 | AT99: 3.137538115 | AU99: 1.432122957 | AV99: 0.7208062989 | AW99: 0.9437405202 | AX99: 1.395216276 | AY99: 3.035913575 | AZ99: 1.664218217 | BA99: 3.664028802 | BB99: =IFERROR(IF(OR($AF99=0,BB$79=0),"",SQRT(($AI$97-$AI99)^2+($AJ$97-$AJ99)^2)),"") -> 1.913893637 | BC99: =IFERROR(IF(OR($AF99=0,BC$79=0),"",SQRT(($AI$98-$AI99)^2+($AJ$98-$AJ99)^2)),"") -> 3.197868284
U100: 0 | W100: 0 | X100: 0 | Z100: 3.810644509 | AA100: 6.591738654 | AC100: 1.942481915 | AD100: 4.089522207 | AF100: =IF(M17>0.5,1,0) -> 1 | AH100: Adult | AI100: 1.942481915 | AJ100: 4.089522207 | AK100: 1.933441271 | AL100: 2.731848089 | AM100: 4.246253706 | AN100: 3.313408631 | AO100: 1.037046872 | AP100: 1.25168004 | AQ100: 3.510920949 | AR100: 2.528360199 | AS100: 1.010874429 | AT100: 0.3260486942 | AU100: 1.434197255 | AV100: 3.571109297 | AW100: 3.337255219 | AX100: 3.954685159 | AY100: 1.134559363 | AZ100: 1.353600477 | BA100: 2.899685679 | BB100: 2.197702012 | BC100: =IFERROR(IF(OR($AF100=0,BC$79=0),"",SQRT(($AI$98-$AI100)^2+($AJ$98-$AJ100)^2)),"") -> 4.092284966 | BD100: =IFERROR(IF(OR($AF100=0,BD$79=0),"",SQRT(($AI$99-$AI100)^2+($AJ$99-$AJ100)^2)),"") -> 2.851068926
U101: 0 | W101: 0 | X101: 0 | Z101: =+IF($AF101=1,(AC101+$AD$107)*$AD$109,"") -> 1.519566576 | AA101: 6.275523577 | AC101: 0.1737404132 | AD101: 3.845400118 | AF101: =IF(N17>0.5,1,0) -> 1 | AH101: Bitter | AI101: 0.1737404132 | AJ101: 3.845400118 | AK101: 3.712040396 | AL101: 4.481557626 | AM101: 5.59610546 | AN101: 3.942992141 | AO101: 0.7670497866 | AP101: 1.316875473 | AQ101: 3.045551068 | AR101: 4.092878065 | AS101: 1.555461522 | AT101: 1.753477509 | AU101: 2.996766696 | AV101: 4.939115277 | AW101: 4.9198284 | AX101: 5.008954337 | AY101: 2.759816732 | AZ101: 2.577586856 | BA101: 2.277955357 | BB101: 2.802645498 | BC101: 4.165375276 | BD101: =IFERROR(IF(OR($AF101=0,BD$79=0),"",SQRT(($AI$99-$AI101)^2+($AJ$99-$AJ101)^2)),"") -> 4.241029961 | BE101: =IFERROR(IF(OR($AF101=0,BE$79=0),"",SQRT(($AI$100-$AI101)^2+($AJ$100-$AJ101)^2)),"") -> 1.785508918
U102: 0 | W102: 0 | X102: 0 | Z102: 5.804476212 | AA102: 2.880531228 | AC102: 3.481745521 | AD102: 1.224422552 | AF102: =IF(O17>0.5,1,0) -> 1 | AH102: Feminine | AI102: 3.481745521 | AJ102: 1.224422552 | AK102: 2.921020946 | AL102: 2.794551139 | AM102: 1.698779458 | AN102: 0.7847914107 | AO102: 3.842429685 | AP102: 2.904516734 | AQ102: 2.880266832 | AR102: 1.747284063 | AS102: 4.253027285 | AT102: 3.574374124 | AU102: 2.069358607 | AV102: 1.290024788 | AW102: 2.016411133 | AX102: 0.7943714883 | AY102: 3.773688337 | AZ102: 1.899007399 | BA102: 3.027043843 | BB102: 1.454093477 | BC102: 2.09916081 | BD102: 1.157547025 | BE102: =IFERROR(IF(OR($AF102=0,BE$79=0),"",SQRT(($AI$100-$AI102)^2+($AJ$100-$AJ102)^2)),"") -> 3.252403493 | BF102: =IFERROR(IF(OR($AF102=0,BF$79=0),"",SQRT(($AI$101-$AI102)^2+($AJ$101-$AJ102)^2)),"") -> 4.220476418
U103: 0 | W103: 0 | X103: 0 | Z103: =+IF($AF103=1,(AC103+$AD$107)*$AD$109,"") -> 1.297049966 | AA103: =+IF($AF103=1,(AD103+$AD$107)*$AD$109,"") -> 4.539406418 | AC103: =IF($AF103=1,AI103,"") -> 0.001954741092 | AD103: =IF($AF103=1,AJ103,"") -> 2.50509544 | AF103: =IF(P17>0.5,1,0) -> 1 | AH103: For diets | AI103: 0.001954741092 | AJ103: 2.50509544 | AK103: 4.196405251 | AL103: 4.819073256 | AM103: 5.304722424 | AN103: 3.213187576 | AO103: 1.811611478 | AP103: 1.348208277 | AQ103: 1.784607385 | AR103: 4.15353118 | AS103: 2.72813163 | AT103: 2.637124673 | AU103: 3.201382165 | AV103: 4.709798905 | AW103: 4.937590776 | AX103: 4.491222106 | AY103: 3.632549328 | AZ103: 2.593780631 | BA103: 1.032930102 | BB103: 2.275777536 | BC103: 3.069280575 | BD103: 4.095808165 | BE103: 2.505205359 | BF103: =IFERROR(IF(OR($AF103=0,BF$79=0),"",SQRT(($AI$101-$AI103)^2+($AJ$101-$AJ103)^2)),"") -> 1.351268643 | BG103: =IFERROR(IF(OR($AF103=0,BG$79=0),"",SQRT(($AI$102-$AI103)^2+($AJ$102-$AJ103)^2)),"") -> 3.707973425
Z104: Min | AA104: =MIN(Z80:AA102) -> 1.295315302 | AC104: Min | AD104: =MIN(AC80:AD102) -> 0.0006155586057 | AI104: 0 | AJ104: 1.578557312 | AK104: =IF(AK79=1,SUM(AK80:AK103),"") -> 62.11242895 | AL104: =IF(AL79=1,SUM(AL80:AL103),"") -> 66.90484394 | AM104: 70.94667301 | AN104: 51.53704053 | AO104: 49.73763265 | AP104: 41.30137787 | AQ104: 54.17992591 | AR104: 38.3968503 | AS104: 45.49624665 | AT104: 37.57355866 | AU104: 28.52145444 | AV104: 33.28345074 | AW104: 35.21635095 | AX104: 31.14835622 | AY104: 28.45244765 | AZ104: 16.59432176 | BA104: 16.7033341 | BB104: 12.5962098 | BC104: 16.62396991 | BD104: 12.34545408 | BE104: 7.54311777 | BF104: 5.571745061 | BG104: 3.707973425 | BH104: 0
Z105: Max | AA105: =MAX(Z80:AA102) -> 8 | AC105: Max | AD105: =MAX(AC80:AD102) -> 5.176717999 | AI105: 2.657114625 | AJ105: 0
AA106: =+AA105-AA104 -> 6.704684698 | AD106: =+AD105-AD104 -> 5.17610244 | AI106: 0 | AJ106: 3.735671937
AC107: Down | AD107: =1-AD104 -> 0.9993844414 | AI107: 0.5 | AJ107: 0
AC108: Top | AD108: =+AD107+AD105 -> 6.17610244 | AI108: 0 | AJ108: 4.814229249
AC109: To 9 | AD109: =8/AD108 -> 1.295315302 | AI109: 2.657114625 | AJ109: 0
AI110: 0 | AJ110: 1.578557312
AI111: 4.274950593 | AJ111: 0
AI112: 0 | AJ112: 2.657114625
AI113: 4.274950593 | AJ113: 0
AH138: =+AH80 -> Coke | AK138: =IFERROR(AK80^2,"") -> 0 | AL138: 0 | AM138: 0 | AN138: 0 | AO138: 0 | AP138: 0 | AQ138: 0 | AR138: 0 | AS138: 0 | AT138: 0 | AU138: 0 | AV138: 0 | AW138: 0 | AX138: 0 | AY138: 0 | AZ138: 0 | BA138: 0 | BB138: 0 | BC138: 0 | BD138: 0 | BE138: 0 | BF138: 0 | BG138: 0 | BH138: 0
AH139: Pepsi | AK139: =IFERROR(AK81^2,"") -> 0.7345292087 | AL139: 0 | AM139: 0 | AN139: 0 | AO139: 0 | AP139: 0 | AQ139: 0 | AR139: 0 | AS139: 0 | AT139: 0 | AU139: 0 | AV139: 0 | AW139: 0 | AX139: 0 | AY139: 0 | AZ139: 0 | BA139: 0 | BB139: 0 | BC139: 0 | BD139: 0 | BE139: 0 | BF139: 0 | BG139: 0 | BH139: 0
AH140: Fanta | AK140: =IFERROR(AK82^2,"") -> 9.424749555 | AL140: 6.143142703 | AM140: 0 | AN140: 0 | AO140: 0 | AP140: 0 | AR140: 0 | AS140: 0 | AT140: 0 | AU140: 0 | AV140: 0 | AW140: 0 | AX140: 0 | AY140: 0 | AZ140: 0 | BA140: 0 | BB140: 0 | BC140: 0 | BD140: 0 | BE140: 0 | BF140: 0 | BG140: 0 | BH140: 0
AH141: Sprite | AK141: =IFERROR(AK83^2,"") -> 11.68411493 | AL141: 11.81688169 | AM141: 5.974100311 | AN141: 0 | AO141: 0 | AP141: 0 | AQ141: 0 | AR141: 0 | AS141: 0 | AT141: 0 | AU141: 0 | AV141: 0 | AW141: 0 | AX141: 0 | AY141: 0 | AZ141: 0 | BA141: 0 | BB141: 0 | BC141: 0 | BD141: 0 | BE141: 0 | BF141: 0 | BG141: 0 | BH141: 0
AH142: Pepsi Max | AK142: =IFERROR(AK84^2,"") -> 8.823795949 | AL142: 14.15355822 | AM142: 25.73524574 | AN142: 13.6900958 | AO142: 0 | AP142: 0 | AQ142: 0 | AR142: 0 | AS142: 0 | AT142: 0 | AU142: 0 | AV142: 0 | AW142: 0 | AX142: 0 | AY142: 0 | AZ142: 0 | BA142: 0 | BB142: 0 | BC142: 0 | BD142: 0 | BE142: 0 | BF142: 0 | BG142: 0 | BH142: 0
AH143: Coke Zero | AK143: =IFERROR(AK85^2,"") -> 8.117124595 | AL143: 12.2138635 | AM143: 18.53569388 | AN143: 7.127096807 | AO143: 1.136697939 | AP143: 0 | AQ143: 0 | AR143: 0 | AS143: 0 | AT143: 0 | AU143: 0 | AV143: 0 | AW143: 0 | AX143: 0 | AY143: 0 | AZ143: 0 | BA143: 0 | BB143: 0 | BC143: 0 | BD143: 0 | BE143: 0 | BF143: 0 | BG143: 0 | BH143: 0
AH144: Water | AK144: =IFERROR(AK86^2,"") -> 21.33718938 | AL144: 24.77981457 | AM144: 20.94435579 | AN144: 4.613187355 | AO144: 10.58335336 | AP144: 5.31820882 | AQ144: 0 | AR144: 0 | AS144: 0 | AT144: 0 | AU144: 0 | AV144: 0 | AW144: 0 | AX144: 0 | AY144: 0 | AZ144: 0 | BA144: 0 | BB144: 0 | BC144: 0 | BD144: 0 | BE144: 0 | BF144: 0 | BG144: 0 | BH144: 0
AH145: Mt Dew | AK145: =IFERROR(AK87^2,"") -> 1.70026989 | AL145: 1.106966913 | AM145: 3.333590892 | AN145: 5.70772564 | AO145: 11.99366565 | AP145: 8.521716614 | AQ145: 16.37948508 | AR145: 0 | AS145: 0 | AT145: 0 | AU145: 0 | AV145: 0 | AW145: 0 | AX145: 0 | AY145: 0 | AZ145: 0 | BA145: 0 | BB145: 0 | BC145: 0 | BD145: 0 | BE145: 0 | BF145: 0 | BG145: 0 | BH145: 0
AH146: Dr Pepper | AK146: =IFERROR(AK88^2,"") -> 7.097617203 | AL146: 12.35609826 | AM146: 27.44923166 | AN146: 18.16529216 | AO146: 0.841200322 | AP146: 3.360062256 | AQ146: 16.94258431 | AR146: 12.12510714 | AS146: 0 | AT146: 0 | AU146: 0 | AV146: 0 | AW146: 0 | AX146: 0 | AY146: 0 | AZ146: 0 | BA146: 0 | BB146: 0 | BC146: 0 | BD146: 0 | BE146: 0 | BF146: 0 | BG146: 0 | BH146: 0
AH147: Diet Coke | AK147: =IFERROR(AK89^2,"") -> 4.231321122 | AL147: 8.340163865 | AM147: 20.51347307 | AN147: 13.2399163 | AO147: 0.9734021023 | AP147: 2.159778505 | AQ147: 14.16809847 | AR147: 7.729765808 | AS147: 0.5043780272 | AT147: 0 | AU147: 0 | AV147: 0 | AW147: 0 | AX147: 0 | AY147: 0 | AZ147: 0 | BA147: 0 | BB147: 0 | BC147: 0 | BD147: 0 | BE147: 0 | BF147: 0 | BG147: 0 | BH147: 0
AH148: Pepsi Next | AK148: =IFERROR(AK90^2,"") -> 1.318218045 | AL148: 2.626875287 | AM148: 7.955557435 | AN148: 5.76951252 | AO148: 5.536111871 | AP148: 3.582943398 | AQ148: 12.06333167 | AR148: 1.23364518 | AS148: 5.850179205 | AT148: 2.920224006 | AU148: 0 | AV148: 0 | AW148: 0 | AX148: 0 | AY148: 0 | AZ148: 0 | BA148: 0 | BB148: 0 | BC148: 0 | BD148: 0 | BE148: 0 | BF148: 0 | BG148: 0 | BH148: 0
AH149: Lift | AK149: =IFERROR(AK91^2,"") -> 6.146147313 | AL149: 3.985231657 | AM149: 0.4560633225 | AN149: 4.304508989 | AO149: 19.38380449 | AP149: 13.39102317 | AQ149: 17.06788033 | AR149: 1.4226872 | AS149: 20.84229368 | AT149: 14.86253868 | AU149: 4.610391064 | AV149: 0 | AW149: 0 | AX149: 0 | AY149: 0 | AZ149: 0 | BA149: 0 | BB149: 0 | BC149: 0 | BD149: 0 | BE149: 0 | BF149: 0 | BG149: 0 | BH149: 0
AH150: Sweet | AK150: =IFERROR(AK92^2,"") -> 3.378552225 | AL150: 1.384874346 | AM150: 1.697341787 | AN150: 7.693113361 | AO150: 18.38373631 | AP150: 13.94024727 | AQ150: 21.76360305 | AR150: 0.6842253614 | AS150: 18.20989953 | AT150: 12.77916423 | AU150: 3.743677697 | AV150: 0.810930288 | AW150: 0 | AX150: 0 | AY150: 0 | AZ150: 0 | BA150: 0 | BB150: 0 | BC150: 0 | BD150: 0 | BE150: 0 | BF150: 0 | BG150: 0 | BH150: 0
AH151: For Kids | AK151: =IFERROR(AK93^2,"") -> 10.97875994 | AL151: 8.90200965 | AM151: 1.295712137 | AN151: 1.933134198 | AO151: 21.22949222 | AP151: 13.63209677 | AQ151: 12.5046506 | AR151: 4.098404515 | AS151: 24.64260159 | AT151: 18.23152426 | AU151: 7.0721879 | AV151: 1.135443619 | AW151: 3.842599343 | AX151: 0 | AY151: 0 | AZ151: 0 | BA151: 0 | BB151: 0 | BC151: 0 | BD151: 0 | BE151: 0 | BF151: 0 | BG151: 0 | BH151: 0
AH152: High caffeine | AK152: =IFERROR(AK94^2,"") -> 1.986412356 | AL152: 5.100435874 | AM152: 18.88263114 | AN152: 16.3016155 | AO152: 3.990378503 | AP152: 5.664237343 | AQ152: 21.05174876 | AR152: 6.348400498 | AS152: 1.933312616 | AT152: 1.042905158 | AU152: 2.90968212 | AV152: 13.70641959 | AW152: 10.23183388 | AX152: 18.92125333 | AY152: 0 | AZ152: 0 | BA152: 0 | BB152: 0 | BC152: 0 | BD152: 0 | BE152: 0 | BF152: 0 | BG152: 0 | BH152: 0
AH153: Modern | AK153: =IFERROR(AK95^2,"") -> 3.225159962 | AL153: 5.117654606 | AM153: 9.213958244 | AN153: 4.068209402 | AO153: 4.169122085 | AP153: 1.815550372 | AQ153: 7.982388733 | AR153: 2.481426601 | AS153: 5.548270241 | AT153: 2.810941755 | AU153: 0.4361140184 | AV153: 5.614752112 | AW153: 5.694551974 | AX153: 6.838637272 | AY153: 4.146577603 | AZ153: 0 | BA153: 0 | BB153: 0 | BC153: 0 | BD153: 0 | BE153: 0 | BF153: 0 | BG153: 0 | BH153: 0
AH154: Low in sugar | AK154: =IFERROR(AK96^2,"") -> 17.9604878 | AL154: 22.17841192 | AM154: 22.15363241 | AN154: 5.781652696 | AO154: 6.372242726 | AP154: 2.736253595 | AQ154: 0.5910694561 | AR154: 15.00770371 | AS154: 11.62989233 | AT154: 9.752510383 | AU154: 9.749083848 | AV154: 17.47545269 | AW154: 20.96983915 | AX154: 14.1912876 | AY154: 16.11640893 | AZ154: 6.063479145 | BA154: 0 | BB154: 0 | BC154: 0 | BD154: 0 | BE154: 0 | BF154: 0 | BG154: 0 | BH154: 0
AH155: Trusted | AK155: =IFERROR(AK97^2,"") -> 7.709128663 | AL155: 9.474577941 | AM155: 9.198161509 | AN155: 1.382701102 | AO155: 6.37237535 | AP155: 2.264924593 | AQ155: 3.614370641 | AR155: 4.654929136 | AS155: 9.663282305 | AT155: 6.337657698 | AU155: 2.670901161 | AV155: 6.049855915 | AW155: 8.018060267 | AX155: 5.052843273 | AY155: 9.34620398 | AZ155: 1.100954119 | BA155: 3.063863928 | BB155: 0 | BC155: 0 | BD155: 0 | BE155: 0 | BF155: 0 | BG155: 0 | BH155: 0
AH156: Clear | AK156: =IFERROR(AK98^2,"") -> 21.36684448 | AL156: 22.424826 | AM156: 13.35213125 | AN156: 1.775965452 | AO156: 17.36101769 | AP156: 9.656938613 | AQ156: 2.012683109 | AR156: 13.67068059 | AS156: 24.11385514 | AT156: 19.34340024 | AU156: 12.41447227 | AV156: 11.38881528 | AW156: 16.85364004 | AX156: 6.370504018 | AY156: 25.07930945 | AZ156: 8.966738548 | BA156: 4.207834424 | BB156: 3.810685188 | BC156: 0 | BD156: 0 | BE156: 0 | BF156: 0 | BG156: 0 | BH156: 0
AH157: Tangy | AK157: =IFERROR(AK99^2,"") -> 3.684227443 | AL157: 2.724275938 | AM157: 1.94905689 | AN157: 3.485846782 | AO157: 13.59846441 | AP157: 8.880144957 | AQ157: 13.86185277 | AR157: 0.4014429624 | AS157: 14.80498403 | AT157: 9.844145426 | AU157: 2.050976164 | AV157: 0.5195617206 | AW157: 0.8906461695 | AX157: 1.946628457 | AY157: 9.216771232 | AZ157: 2.769622273 | BA157: 13.42510706 | BB157: 3.662988853 | BC157: 10.22636156 | BD157: 0 | BE157: 0 | BF157: 0 | BG157: 0 | BH157: 0
AH158: Adult | AK158: =IFERROR(AK100^2,"") -> 3.738195147 | AL158: 7.462993983 | AM158: 18.03067054 | AN158: 10.97867675 | AO158: 1.075466215 | AP158: 1.566702922 | AQ158: 12.32656591 | AR158: 6.392605296 | AS158: 1.021867111 | AT158: 0.106307751 | AU158: 2.056921765 | AV158: 12.75282161 | AW158: 11.13727239 | AX158: 15.63953471 | AY158: 1.287224949 | AZ158: 1.832234251 | BA158: 8.408177034 | BB158: 4.829894132 | BC158: 16.74679624 | BD158: 8.12859402 | BE158: 0 | BF158: 0 | BG158: 0 | BH158: 0
AH159: Bitter | AK159: =IFERROR(AK101^2,"") -> 13.7792439 | AL159: 20.08435875 | AM159: 31.31639632 | AN159: 15.54718702 | AO159: 0.5883653751 | AP159: 1.73416101 | AQ159: 9.27538131 | AR159: 16.75165085 | AS159: 2.419460547 | AT159: 3.074683375 | AU159: 8.980610631 | AV159: 24.39485972 | AW159: 24.20471148 | AX159: 25.08962355 | AY159: 7.616588394 | AZ159: 6.643954002 | BA159: 5.18908061 | BB159: 7.854821788 | BC159: 17.35035119 | BD159: 17.98633513 | BE159: 3.188042095 | BF159: 0 | BG159: 0 | BH159: 0
AH160: Feminine | AK160: =IFERROR(AK102^2,"") -> 8.532363365 | AL160: 7.809516066 | AM160: 2.885851647 | AN160: 0.6158975584 | AO160: 14.76426589 | AP160: 8.436217459 | AQ160: 8.295937023 | AR160: 3.053001596 | AS160: 18.08824108 | AT160: 12.77615038 | AU160: 4.282245043 | AV160: 1.664163953 | AW160: 4.065913859 | AX160: 0.6310260614 | AY160: 14.24072367 | AZ160: 3.606229102 | BA160: 9.16299443 | BB160: 2.114387839 | BC160: 4.406476105 | BD160: 1.339915115 | BE160: 10.57812848 | BF160: 17.8124212 | BG160: 0 | BH160: 0
AH161: For diets | AK161: =IFERROR(AK103^2,"") -> 17.60981703 | AL161: 23.22346705 | AM161: 28.14007999 | AN161: 10.3245744 | AO161: 3.281936147 | AP161: 1.817665558 | AQ161: 3.184823519 | AR161: 17.25182126 | AS161: 7.442702192 | AT161: 6.954426539 | AU161: 10.24884777 | AV161: 22.18220573 | AW161: 24.37980268 | AX161: 20.17107601 | AY161: 13.19541462 | AZ161: 6.727697962 | BA161: 1.066944596 | BB161: 5.179163392 | BC161: 9.420483245 | BD161: 16.77564453 | BE161: 6.276053891 | BF161: 1.825926946 | BG161: 13.74906692 | BH161: 0
AH162: =SUM(AK162:BH162) -> 2533.358189 | AK162: =SUM(AK138:AK161) -> 194.5642695 | AL162: =SUM(AL138:AL161) -> 233.4099988 | AM162: 289.012936 | AN162: 152.5059098 | AO162: 161.6350987 | AP162: 108.4788732 | AQ162: 193.0864547 | AR162: 113.3074977 | AS162: 166.7152196 | AT162: 120.8365799 | AU162: 71.22611144 | AV162: 117.6952822 | AW162: 130.2888712 | AX162: 114.8524143 | AY162: 100.2452228 | AZ162: 37.7109094 | BA162: 44.52400208 | BB162: 27.45194119 | BC162: 58.15046834 | BD162: 44.23048879 | BE162: 20.04222447 | BF162: 19.63834814 | BG162: 13.74906692 | BH162: 0
AH165: =+AH138 -> Coke | AK165: =IFERROR((AK80-AI53)^2,"") -> 0 | AL165: =IFERROR((AL80-AJ53)^2,"") -> 0 | AM165: =IFERROR((AM80-AK53)^2,"") -> 0 | AN165: =IFERROR((AN80-AL53)^2,"") -> 0 | AO165: =IFERROR((AO80-AM53)^2,"") -> 0 | AP165: =IFERROR((AP80-AN53)^2,"") -> 0 | AQ165: =IFERROR((AQ80-AO53)^2,"") -> 0 | AR165: =IFERROR((AR80-AP53)^2,"") -> 0 | AS165: =IFERROR((AS80-AQ53)^2,"") -> 0 | AT165: =IFERROR((AT80-AR53)^2,"") -> 0 | AU165: =IFERROR((AU80-AS53)^2,"") -> 0 | AV165: =IFERROR((AV80-AT53)^2,"") -> 0 | AW165: =IFERROR((AW80-AU53)^2,"") -> 0 | AX165: =IFERROR((AX80-AV53)^2,"") -> 0 | AY165: =IFERROR((AY80-AW53)^2,"") -> 0 | AZ165: =IFERROR((AZ80-AX53)^2,"") -> 0 | BA165: =IFERROR((BA80-AY53)^2,"") -> 0 | BB165: =IFERROR((BB80-AZ53)^2,"") -> 0 | BC165: =IFERROR((BC80-BA53)^2,"") -> 0 | BD165: =IFERROR((BD80-BB53)^2,"") -> 0 | BE165: =IFERROR((BE80-BC53)^2,"") -> 0 | BF165: =IFERROR((BF80-BD53)^2,"") -> 0 | BG165: =IFERROR((BG80-BE53)^2,"") -> 0 | BH165: =IFERROR((BH80-BF53)^2,"") -> 0
D166: If your data is NOT in a 1-9 scale, then nominate your scale andenter your data in the following table | AH166: Pepsi | AK166: 0.09586446497 | AL166: 0 | AM166: 0 | AN166: 0 | AO166: 0 | AP166: 0 | AQ166: 0 | AR166: 0 | AS166: 0 | AT166: 0 | AU166: 0 | AV166: 0 | AW166: 0 | AX166: 0 | AY166: 0 | AZ166: 0 | BA166: 0 | BB166: 0 | BC166: 0 | BD166: 0 | BE166: 0 | BF166: 0 | BG166: 0 | BH166: 0
AH167: Fanta | AK167: 0.1626580131 | AL167: 0.2289970893 | AM167: 0 | AN167: 0 | AO167: 0 | AP167: 0 | AR167: 0 | AS167: 0 | AT167: 0 | AU167: 0 | AV167: 0 | AW167: 0 | AX167: 0 | AY167: 0 | AZ167: 0 | BA167: 0 | BB167: 0 | BC167: 0 | BD167: 0 | BE167: 0 | BF167: 0 | BG167: 0 | BH167: 0
AH168: Sprite | AK168: 0.8430976041 | AL168: 0.3651009272 | AM168: 0.01229081319 | AN168: 0 | AO168: 0 | AP168: 0 | AQ168: 0 | AR168: 0 | AS168: 0 | AT168: 0 | AU168: 0 | AV168: 0 | AW168: 0 | AX168: 0 | AY168: 0 | AZ168: 0 | BA168: 0 | BB168: 0 | BC168: 0 | BD168: 0 | BE168: 0 | BF168: 0 | BG168: 0 | BH168: 0
D169: Enter the maximum of the scale are you using? | E169: 5 | F169: = Maximum | AH169: Pepsi Max | AK169: 0.01881126364 | AL169: 0.1838592965 | AM169: 0.3283195954 | AN169: 0.4900181246 | AO169: 0 | AP169: 0 | AQ169: 0 | AR169: 0 | AS169: 0 | AT169: 0 | AU169: 0 | AV169: 0 | AW169: 0 | AX169: 0 | AY169: 0 | AZ169: 0 | BA169: 0 | BB169: 0 | BC169: 0 | BD169: 0 | BE169: 0 | BF169: 0 | BG169: 0 | BH169: 0
D170: Minimum is fixed at one (1) | AH170: Coke Zero | AK170: 0.1869612191 | AL170: 0.5547774338 | AM170: 0.04927362436 | AN170: 0.006454145716 | AO170: 0.03379700885 | AP170: 0 | AQ170: 0 | AR170: 0 | AS170: 0 | AT170: 0 | AU170: 0 | AV170: 0 | AW170: 0 | AX170: 0 | AY170: 0 | AZ170: 0 | BA170: 0 | BB170: 0 | BC170: 0 | BD170: 0 | BE170: 0 | BF170: 0 | BG170: 0 | BH170: 0
AH171: Water | AK171: 1.252652433 | AL171: 0.2284197237 | AM171: 0.1679636785 | AN171: 0.2691881904 | AO171: 0.006420288991 | AP171: 0.1970257269 | AQ171: 0 | AR171: 0 | AS171: 0 | AT171: 0 | AU171: 0 | AV171: 0 | AW171: 0 | AX171: 0 | AY171: 0 | AZ171: 0 | BA171: 0 | BB171: 0 | BC171: 0 | BD171: 0 | BE171: 0 | BF171: 0 | BG171: 0 | BH171: 0
AH172: Mt Dew | AK172: 0.4844939898 | AL172: 1.641494918 | AM172: 0.1161816364 | AN172: 0.5218877956 | AO172: 0.2145423911 | AP172: 0.1128050342 | AQ172: 0.5095451612 | AR172: 0 | AS172: 0 | AT172: 0 | AU172: 0 | AV172: 0 | AW172: 0 | AX172: 0 | AY172: 0 | AZ172: 0 | BA172: 0 | BB172: 0 | BC172: 0 | BD172: 0 | BE172: 0 | BF172: 0 | BG172: 0 | BH172: 0
D173: Enter your data on your scale as you defined above | E173: =+E16 -> Sweet | F173: For Kids | G173: High caffeine | H173: Modern | I173: Low in sugar | J173: Trusted | K173: Clear | L173: Tangy | M173: Adult | N173: Bitter | O173: Feminine | P173: For diets | AH173: Dr Pepper | AK173: 6.407526152e-06 | AL173: 0.0002287419557 | AM173: 2.472865592 | AN173: 1.592835929 | AO173: 0.8393557397 | AP173: 0.5629291925 | AQ173: 0.2020236364 | AR173: 0.964544873 | AS173: 0 | AT173: 0 | AU173: 0 | AV173: 0 | AW173: 0 | AX173: 0 | AY173: 0 | AZ173: 0 | BA173: 0 | BB173: 0 | BC173: 0 | BD173: 0 | BE173: 0 | BF173: 0 | BG173: 0 | BH173: 0
D174: =+D17 -> Coke | E174: 1 | AH174: Diet Coke | AK174: 0.07635042274 | AL174: 0.002981253148 | AM174: 0.4842028292 | AN174: 0.0932302221 | AO174: 1.026956406 | AP174: 1.240360753 | AQ174: 0.06972423132 | AR174: 0.04829197955 | AS174: 1.261437993 | AT174: 0 | AU174: 0 | AV174: 0 | AW174: 0 | AX174: 0 | AY174: 0 | AZ174: 0 | BA174: 0 | BB174: 0 | BC174: 0 | BD174: 0 | BE174: 0 | BF174: 0 | BG174: 0 | BH174: 0
D175: Pepsi | E175: 2 | AH175: Pepsi Next | AK175: 0.7256709611 | AL175: 0.1438200973 | AM175: 0.0236830883 | AN175: 0.1615886901 | AO175: 0.03468075388 | AP175: 0.09581075047 | AQ175: 0.03741746356 | AR175: 1.115074452 | AS175: 0.06148034127 | AT175: 0.9173815563 | AU175: 0 | AV175: 0 | AW175: 0 | AX175: 0 | AY175: 0 | AZ175: 0 | BA175: 0 | BB175: 0 | BC175: 0 | BD175: 0 | BE175: 0 | BF175: 0 | BG175: 0 | BH175: 0
D176: Fanta | E176: 3 | AH176: Lift | AK176: 0.003903224159 | AL176: 0.1767043511 | AM176: 0.549588052 | AN176: 0.24147173 | AO176: 0.4260228052 | AP176: 0.02540029402 | AQ176: 0.1454119011 | AR176: 0.05013217125 | AS176: 1.730109048 | AT176: 0.003778603348 | AU176: 0.01057151611 | AV176: 0 | AW176: 0 | AX176: 0 | AY176: 0 | AZ176: 0 | BA176: 0 | BB176: 0 | BC176: 0 | BD176: 0 | BE176: 0 | BF176: 0 | BG176: 0 | BH176: 0
D177: Sprite | E177: 4 | AH177: Sweet | AK177: 0.07826124995 | AL177: 0.4580675028 | AM177: 0.06945441097 | AN177: 0.1787150762 | AO177: 0.3046532359 | AP177: 1.158958675 | AQ177: 0.1522537812 | AR177: 0.0449861966 | AS177: 5.844153401e-05 | AT177: 0.02588116648 | AU177: 0.03348072729 | AV177: 0.01925488647 | AW177: 0 | AX177: 0 | AY177: 0 | AZ177: 0 | BA177: 0 | BB177: 0 | BC177: 0 | BD177: 0 | BE177: 0 | BF177: 0 | BG177: 0 | BH177: 0
D178: Pepsi Max | E178: 5 | AH178: For Kids | AK178: 0.4307382999 | AL178: 0.7495881835 | AM178: 0.4074186171 | AN178: 3.261712996 | AO178: 0.1106205769 | AP178: 0.245791529 | AQ178: 0.7727762211 | AR178: 1.373447167 | AS178: 0.02247068613 | AT178: 2.612937571e-05 | AU178: 0.293246707 | AV178: 1.107259527 | AW178: 0.2118345895 | AX178: 0 | AY178: 0 | AZ178: 0 | BA178: 0 | BB178: 0 | BC178: 0 | BD178: 0 | BE178: 0 | BF178: 0 | BG178: 0 | BH178: 0
D179: Coke Zero | AH179: High caffeine | AK179: 0.02861371671 | AL179: 0.4622057416 | AM179: 0.004965226408 | AN179: 0.6032680718 | AO179: 2.242785326 | AP179: 0.6422556092 | AQ179: 0.05108087083 | AR179: 0.1614169423 | AS179: 1.604474422 | AT179: 0.3106167646 | AU179: 0.4442227567 | AV179: 0.328022395 | AW179: 0.001027659066 | AX179: 0.4667486255 | AY179: 0 | AZ179: 0 | BA179: 0 | BB179: 0 | BC179: 0 | BD179: 0 | BE179: 0 | BF179: 0 | BG179: 0 | BH179: 0
D180: Water | AH180: Modern | AK180: 0.7417370734 | AL180: 0.4673992875 | AM180: 0.4903104052 | AN180: 0.01017187228 | AO180: 0.005774959215 | AP180: 0.09495330966 | AQ180: 2.101451621 | AR180: 4.667403692 | AS180: 0.7071407823 | AT180: 2.309813137 | AU180: 0.1435571494 | AV180: 0.06335835072 | AW180: 0.002808227076 | AX180: 0.07938052326 | AY180: 0.001318758246 | AZ180: 0 | BA180: 0 | BB180: 0 | BC180: 0 | BD180: 0 | BE180: 0 | BF180: 0 | BG180: 0 | BH180: 0
D181: Mt Dew | AH181: Low in sugar | AK181: 0.2523149693 | AL181: 0.0109899826 | AM181: 0.01154866417 | AN181: 0.08218013528 | AO181: 0.8944862681 | AP181: 1.33209109 | AQ181: 0.07225903989 | AR181: 0.4591207313 | AS181: 0.1058911092 | AT181: 1.327218365 | AU181: 1.009053048 | AV181: 0.1977520439 | AW181: 0.5564419401 | AX181: 0.5884923397 | AY181: 0.46402174 | AZ181: 0.01666163175 | BA181: 0 | BB181: 0 | BC181: 0 | BD181: 0 | BE181: 0 | BF181: 0 | BG181: 0 | BH181: 0
D182: Dr Pepper | AH182: Trusted | AK182: 5.182596894 | AL182: 2.248569 | AM182: 0.1411748902 | AN182: 2.194046783 | AO182: 1.467285274 | AP182: 1.327444974 | AQ182: 1.963220821 | AR182: 0.2495863173 | AS182: 0.007710813818 | AT182: 0.8815579667 | AU182: 1.046171867 | AV182: 0.5427973135 | AW182: 0.1099704709 | AX182: 0.00730688117 | AY182: 0.1524820691 | AZ182: 2.104636079 | BA182: 1.17276702 | BB182: 0 | BC182: 0 | BD182: 0 | BE182: 0 | BF182: 0 | BG182: 0 | BH182: 0
D183: Diet Coke | AH183: Clear | AK183: 0.03678755876 | AL183: 0.006200526746 | AM183: 0.2094559166 | AN183: 0.06046866628 | AO183: 0.01172783656 | AP183: 1.362797243 | AQ183: 0.8439924769 | AR183: 2.494985718 | AS183: 1.380423123 | AT183: 0.4388285061 | AU183: 0.04505186238 | AV183: 1.579787341 | AW183: 0.7315697469 | AX183: 0.00352213678 | AY183: 0.1802777992 | AZ183: 0.0653051415 | BA183: 0.03948142516 | BB183: 0.3984585032 | BC183: 0 | BD183: 0 | BE183: 0 | BF183: 0 | BG183: 0 | BH183: 0
D184: Pepsi Next | AH184: Tangy | AK184: 0.5441724877 | AL184: 1.013196349 | AM184: 0.03329567905 | AN184: 0.6851925755 | AO184: 1.061919853 | AP184: 0.0468445739 | AQ184: 0.0001567758866 | AR184: 0.01784769537 | AS184: 2.992514423 | AT184: 0.2308067307 | AU184: 0.470202334 | AV184: 0.04875542165 | AW184: 0.7913753731 | AX184: 0.8800636134 | AY184: 0.0884585129 | AZ184: 0.4477150393 | BA184: 6.95833201e-06 | BB184: 0.8453693555 | BC184: 0.01311825501 | BD184: 0 | BE184: 0 | BF184: 0 | BG184: 0 | BH184: 0
D185: Lift | AH185: Adult | AK185: 0.125942624 | AL185: 0.3770108846 | AM185: 0.0008235112936 | AN185: 0.4307218228 | AO185: 1.16810507 | AP185: 0.7502260925 | AQ185: 0.7289852403 | AR185: 0.168530144 | AS185: 0.0008068001284 | AT185: 0.5086969786 | AU185: 3.105334834 | AV185: 0.4953925699 | AW185: 0.007613473163 | AX185: 0.7592540044 | AY185: 0.3787671774 | AZ185: 1.130109724 | BA185: 0.0002883539587 | BB185: 0.07898086508 | BC185: 0.3508014804 | BD185: 0.01021492778 | BE185: 0 | BF185: 0 | BG185: 0 | BH185: 0
AH186: Bitter | AK186: 0.3168678898 | AL186: 0.110670409 | AM186: 0.6113304094 | AN186: 0.1101964137 | AO186: 0.6585444642 | AP186: 1.796240984 | AQ186: 0.02275337301 | AR186: 0.1275962178 | AS186: 1.113999025 | AT186: 0.0305970753 | AU186: 0.1153635298 | AV186: 1.448275874 | AW186: 0.6997239958 | AX186: 2.032395246 | AY186: 0.03114639001 | AZ186: 0.1149751178 | BA186: 0.0007815020095 | BB186: 0.07878566089 | BC186: 0.6922937936 | BD186: 0.6795748411 | BE186: 0.04600642445 | BF186: 0 | BG186: 0 | BH186: 0
AH187: Feminine | AK187: 0.0696465463 | AL187: 0.4579434216 | AM187: 0.1756083588 | AN187: 1.777007793 | AO187: 0.1870743356 | AP187: 1.878088961 | AQ187: 0.7317178933 | AR187: 2.099917525 | AS187: 0.0004806314463 | AT187: 9.451776257 | AU187: 0.002350054593 | AV187: 1.868934622 | AW187: 0.02257672529 | AX187: 0.4979115965 | AY187: 0.3684753087 | AZ187: 0.07164148344 | BA187: 0.09381325167 | BB187: 0.2980139321 | BC187: 0.2344230326 | BD187: 1.018322452 | BE187: 0.4476548785 | BF187: 0.9418244782 | BG187: 0 | BH187: 0
AH188: For diets | AK188: 0.006169370657 | AL188: 2.346440292e-05 | AM188: 0.2405835546 | AN188: 0.2729899072 | AO188: 0.05431424415 | AP188: 0.05306067809 | AQ188: 1.650216134 | AR188: 0.1746063473 | AS188: 0.2192689732 | AT188: 2.553111893 | AU188: 2.488896536e-05 | AV188: 0.189093055 | AW188: 0.2713619282 | AX188: 0.549410211 | AY188: 0.7788933168 | AZ188: 0.104255392 | BA188: 0.1472537507 | BB188: 0.09459056866 | BC188: 0.1620979588 | BD188: 0.0001556214351 | BE188: 0.1146084462 | BF188: 0.0003216753447 | BG188: 0.08485962728 | BH188: 0
AH189: =SUM(AK189:BH189) -> 157.7613513 | AK189: =SUM(AK165:AK188) -> 11.66431868 | AL189: =SUM(AL165:AL188) -> 9.888248585 | AM189: 6.600338553 | AN189: 13.04334694 | AO189: 10.74906684 | AP189: 12.92308547 | AQ189: 10.05498664 | AR189: 14.21748817 | AS189: 11.20826661 | AT189: 18.99009113 | AU189: 6.718631276 | AV189: 7.8886834 | AW189: 3.406304129 | AX189: 5.864485177 | AY189: 2.443841072 | AZ189: 4.055299609 | BA189: 1.454392262 | BB189: 1.794198885 | BC189: 1.452734521 | BD189: 1.708267842 | BE189: 0.6082697492 | BF189: 0.9421461535 | BG189: 0.08485962728 | BH189: 0
V192: 0 | AH192: =SQRT(AH189/AH162) -> 0.2495468025 | AK192: 1 | AL192: =+AH165 -> Coke | AM192: =+Z80 -> 6.314774297 | AN192: =+AA80 -> 6.629604606
AK193: 2 | AL193: =+AH166 -> Pepsi | AM193: =+Z81 -> 7.323566879 | AN193: 6.166181165
AK194: 3 | AL194: Fanta | AM194: =+Z82 -> 8 | AN194: 3.027764458
AK195: 4 | AL195: Sprite | AM195: =+Z83 -> 4.889479281 | AN195: 2.437632545
AK196: 5 | AL196: Pepsi Max | AM196: =+Z84 -> 2.467468492 | AN196: 6.573291839
AK197: 6 | AL197: Coke Zero | AM197: =+Z85 -> 2.888673444 | AN197: 5.25807869
AK198: 7 | AL198: Water | AM198: =+Z86 -> 2.108069568 | AN198: 2.374717753
AK199: 8 | AL199: Mt Dew | AM199: =+Z87 -> 6.659428469 | AN199: 4.976124252
AK200: 9 | AL200: Dr Pepper | AM200: =+Z88 -> 3.011839983 | AN200: 7.629256178
AK201: 10 | AL201: Diet Coke | AM201: =+Z89 -> 3.675006636 | AN201: 6.991701088
D202: Scale Recalculation | AK202: 11 | AL202: Pepsi Next | AM202: =+Z90 -> 5.326707686 | AN202: 5.518080598
D203: Enter your data on your scale as you defined above | E203: =+E173 -> Sweet | F203: =+F173 -> For Kids | G203: High caffeine | H203: Modern | I203: Low in sugar | J203: Trusted | K203: Clear | L203: Tangy | M203: Adult | N203: Bitter | O203: Feminine | P203: For diets | AK203: 12 | AL203: Lift | AM203: =+Z91 -> 7.321866825 | AN203: 3.580337957
D204: =+D174 -> Coke | E204: =IF((E174-1)*8/($E$169-1)+1>0.99,(E174-1)*8/($E$169-1)+1,"") -> 1 | AK204: 13 | AL204: =+AH177 -> Sweet | AM204: =+Z92 -> 7.691087929 | AN204: 4.686813648
D205: =+D175 -> Pepsi | E205: =IF((E175-1)*8/($E$169-1)+1>0.99,(E175-1)*8/($E$169-1)+1,"") -> 3 | AK205: 14 | AL205: =+AH178 -> For Kids | AM205: =+Z93 -> 6.688505646 | AN205: 2.353982256
D206: Fanta | E206: =IF((E176-1)*8/($E$169-1)+1>0.99,(E176-1)*8/($E$169-1)+1,"") -> 5 | AK206: 15 | AL206: High caffeine | AM206: =+Z94 -> 4.812498999 | AN206: 7.666935064
D207: Sprite | E207: =IF((E177-1)*8/($E$169-1)+1>0.99,(E177-1)*8/($E$169-1)+1,"") -> 7 | AK207: 16 | AL207: Modern | AM207: =+Z95 -> 4.619865061 | AN207: 5.036309071
D208: Pepsi Max | E208: =IF((E178-1)*8/($E$169-1)+1>0.99,(E178-1)*8/($E$169-1)+1,"") -> 9 | AK208: 17 | AL208: Low in sugar | AM208: =+Z96 -> 1.911832821 | AN208: 3.35104359
D209: Coke Zero | E209: =IF((E179-1)*8/($E$169-1)+1>0.99,(E179-1)*8/($E$169-1)+1,"") ->  | AK209: 18 | AL209: Trusted | AM209: =+Z97 -> 4.141164364 | AN209: 3.764274319
D210: Water | E210: =IF((E180-1)*8/($E$169-1)+1>0.99,(E180-1)*8/($E$169-1)+1,"") ->  | AK210: 19 | AL210: Clear | AM210: =+Z98 -> 3.595299901 | AN210: 1.295315302
D211: Mt Dew | E211: =IF((E181-1)*8/($E$169-1)+1>0.99,(E181-1)*8/($E$169-1)+1,"") ->  | AK211: 20 | AL211: Tangy | AM211: =+Z99 -> 6.588719283 | AN211: 4.158470312
D212: Dr Pepper | E212: =IF((E182-1)*8/($E$169-1)+1>0.99,(E182-1)*8/($E$169-1)+1,"") ->  | AK212: 21 | AL212: Adult | AM212: =+Z100 -> 3.810644509 | AN212: 6.591738654
D213: Diet Coke | E213: =IF((E183-1)*8/($E$169-1)+1>0.99,(E183-1)*8/($E$169-1)+1,"") ->  | AK213: 22 | AL213: Bitter | AM213: =+Z101 -> 1.519566576 | AN213: 6.275523577
D214: Pepsi Next | E214: =IF((E184-1)*8/($E$169-1)+1>0.99,(E184-1)*8/($E$169-1)+1,"") ->  | AK214: 23 | AL214: Feminine | AM214: =+Z102 -> 5.804476212 | AN214: 2.880531228
D215: Lift | E215: =IF((E185-1)*8/($E$169-1)+1>0.99,(E185-1)*8/($E$169-1)+1,"") ->  | AK215: 24 | AL215: For diets | AM215: =+Z103 -> 1.297049966 | AN215: 4.539406418
AG221: Min | AH221: =MIN(E17:P28) -> 1
AG222: Max | AH222: =MAX(E17:P28) -> 9
AG223: Difference data brand-attribute | AH223: =+AH222+1 -> 10
AH224: 1 | AI224: 2 | AJ224: 3 | AK224: 4 | AL224: 5 | AM224: 6 | AN224: 7 | AO224: 8 | AP224: 9 | AQ224: 10 | AR224: 11 | AS224: 12
AG225: 1 | AH225: =IF(E17>0.5,$AH$223-E17,"") -> 4 | AI225: =IF(F17>0.5,$AH$223-F17,"") -> 5 | AJ225: =IF(G17>0.5,$AH$223-G17,"") -> 3 | AK225: =IF(H17>0.5,$AH$223-H17,"") -> 5 | AL225: =IF(I17>0.5,$AH$223-I17,"") -> 7 | AM225: =IF(J17>0.5,$AH$223-J17,"") -> 1 | AN225: =IF(K17>0.5,$AH$223-K17,"") -> 9 | AO225: =IF(L17>0.5,$AH$223-L17,"") -> 5 | AP225: =IF(M17>0.5,$AH$223-M17,"") -> 3 | AQ225: =IF(N17>0.5,$AH$223-N17,"") -> 8 | AR225: =IF(O17>0.5,$AH$223-O17,"") -> 5 | AS225: =IF(P17>0.5,$AH$223-P17,"") -> 8
AG226: 2 | AH226: 1 | AI226: 4 | AJ226: 3 | AK226: 3 | AL226: 9 | AM226: 3 | AN226: 9 | AO226: 5 | AP226: 4 | AQ226: 9 | AR226: 4 | AS226: 9
AG227: 3 | AH227: 2 | AI227: 1 | AJ227: 8 | AK227: 7 | AL227: 9 | AM227: 5 | AN227: 6 | AO227: 3 | AP227: 8 | AQ227: 9 | AR227: 4 | AS227: 9
AG228: 4 | AH228: 6 | AI228: 6 | AJ228: 9 | AK228: 4 | AL228: 4 | AM228: 5 | AN228: 3 | AO228: 2 | AP228: 5 | AQ228: 8 | AR228: 4 | AS228: 7
AG229: 5 | AH229: 7 | AI229: 8 | AJ229: 1 | AK229: 4 | AL229: 3 | AM229: 7 | AN229: 8 | AO229: 5 | AP229: 4 | AQ229: 3 | AR229: 8 | AS229: 3
AG230: 6 | AH230: 5 | AI230: 6 | AJ230: 3 | AK230: 2 | AL230: 1 | AM230: 5 | AN230: 8 | AO230: 6 | AP230: 4 | AQ230: 5 | AR230: 8 | AS230: 3
AG231: 7 | AH231: 8 | AI231: 5 | AJ231: 9 | AK231: 8 | AL231: 1 | AM231: 1 | AN231: 1 | AO231: 7 | AP231: 5 | AQ231: 6 | AR231: 7 | AS231: 1
AG232: 8 | AH232: 2 | AI232: 6 | AJ232: 4 | AK232: 7 | AL232: 6 | AM232: 5 | AN232: 4 | AO232: 1 | AP232: 4 | AQ232: 7 | AR232: 6 | AS232: 7
AG233: 9 | AH233: 8 | AI233: 9 | AJ233: 5 | AK233: 6 | AL233: 7 | AM233: 6 | AN233: 7 | AO233: 4 | AP233: 2 | AQ233: 1 | AR233: 8 | AS233: 6
AG234: 10 | AH234: 7 | AI234: 8 | AJ234: 3 | AK234: 6 | AL234: 8 | AM234: 3 | AN234: 7 | AO234: 5 | AP234: 2 | AQ234: 3 | AR234: 1 | AS234: 2
AG235: 11 | AH235: 4 | AI235: 4 | AJ235: 2 | AK235: 2 | AL235: 4 | AM235: 5 | AN235: 7 | AO235: 4 | AP235: 6 | AQ235: 5 | AR235: 4 | AS235: 6
AG236: 12 | AH236: 2 | AI236: 4 | AJ236: 8 | AK236: 4 | AL236: 7 | AM236: 6 | AN236: 4 | AO236: 1 | AP236: 8 | AQ236: 7 | AR236: 5 | AS236: 8
AH238: 1 | AI238: 2 | AJ238: 3 | AK238: 4 | AL238: 5 | AM238: 6 | AN238: 7 | AO238: 8 | AP238: 9 | AQ238: 10 | AR238: 11 | AS238: 12
AG239: 1 | AH239: =+AH225 -> 4 | AI239: =+AH226 -> 1 | AJ239: =+AH227 -> 2 | AK239: =+AH228 -> 6 | AL239: =+AH229 -> 7 | AM239: =+AH230 -> 5 | AN239: =+AH231 -> 8 | AO239: =+AH232 -> 2 | AP239: =+AH233 -> 8 | AQ239: =+AH234 -> 7 | AR239: =+AH235 -> 4 | AS239: =+AH236 -> 2
AG240: 2 | AH240: =+AI225 -> 5 | AI240: =+AI226 -> 4 | AJ240: =+AI227 -> 1 | AK240: =+AI228 -> 6 | AL240: =+AI229 -> 8 | AM240: =+AI230 -> 6 | AN240: =+AI231 -> 5 | AO240: =+AI232 -> 6 | AP240: =+AI233 -> 9 | AQ240: =+AI234 -> 8 | AR240: =+AI235 -> 4 | AS240: =+AI236 -> 4
AG241: 3 | AH241: =+AJ225 -> 3 | AI241: =+AJ226 -> 3 | AJ241: =+AJ227 -> 8 | AK241: =+AJ228 -> 9 | AL241: =+AJ229 -> 1 | AM241: =+AJ230 -> 3 | AN241: =+AJ231 -> 9 | AO241: =+AJ232 -> 4 | AP241: =+AJ233 -> 5 | AQ241: =+AJ234 -> 3 | AR241: =+AJ235 -> 2 | AS241: =+AJ236 -> 8
AG242: 4 | AH242: =+AK225 -> 5 | AI242: =+AK226 -> 3 | AJ242: =+AK227 -> 7 | AK242: =+AK228 -> 4 | AL242: =+AK229 -> 4 | AM242: =+AK230 -> 2 | AN242: =+AK231 -> 8 | AO242: =+AK232 -> 7 | AP242: =+AK233 -> 6 | AQ242: =+AK234 -> 6 | AR242: =+AK235 -> 2 | AS242: =+AK236 -> 4
... 21 more rows
